Workbook

Sheet 1 Point
B1: JAUGEAGE PAR EXPLORATION DU CHAMP DES VITESSES
B2: METHODE POINTS ET FORMULES NORMALISEES
D4: Date : | H4: Maître d'ouvrage :
D5: Heure de début : | H5: Nom de la prise :
D6: Heure de fin : | H6: Localisation :
D7: Durée de mesurage : | E7: =E6-E5 -> 00:00:00 | H7: GPS : | I7: X : | L7: Y :
D9: Equipement en place : | H9: Equipement utilisé : | P9: Nombre de verticales recommandées par la norme NF EN ISO 748 selon la largeur du chenal
D10: Forme du chenal : | H10: Type : | P10: Version de Janvier 2002 | V10: Version de Avril 2009 | AA10: Version de Décembre 2021
D11: Coefficient de rive : | E11: 0.8 | H11: Référence de l'appareil : | P11: < 0,5 | Q11: >0,5 et <1 | R11: >1 et <3 | S11: >3 et <5 | T11: >5 et <10 | U11: > 10 | V11: < 0,5 | W11: >0,5 et <1 | X11: >1 et <3 | Y11: >3 et <5 | Z11: > 5 | AA11: < 0,5 | AB11: >0,5 et <5 | AC11: > 5
D12: Largeur du chenal : | E12: 0.6 | H12: Référence de l'hélice : | P12: 3 ou 4 | Q12: 4 ou 5 | R12: 5 à 8 | S12: 8 à 10 | T12: 10 à 20 | U12: >20 | V12: 5 ou 6 | W12: 6 ou 7 | X12: 7 à 12 | Y12: 13 à 16 | Z12: > 22 | AA12: ≥ 15 | AB12: ≥ 20 | AC12: ≥ 22
D13: Profondeur moyenne : | E13: 0.45 | H13: Opérateur(s) : | P13: =IF($E$12<0.5,"3 ou 4",IF($E$12<1,"4 ou 5",IF($E$12<3,"5 à 8",IF($E$12<5,"8 à 10",IF($E$12<10,"10 à 20","> 20"))))) -> 4 ou 5 | V13: =IF($E$12<0.5,"5 ou 6",IF($E$12<1,"6 ou 7",IF($E$12<3,"7 à 12",IF($E$12<5,"13 à 16","> 22")))) -> 6 ou 7 | AA13: =IF($E$12<0.5,"≥ 15",IF($E$12<5,"≥ 20","≥ 22")) -> ≥ 20
E15: Nombre de verticales retenues : | F15: 1 | M15: Nombre de points retenus par verticale : | N15: 1 | R15: Distance entre verticales : | S15: =IF(F15=1,E12/2,($E$12-0.1)/($F$15-1)) -> 0.3 | U15: Nombre de points conseillés par verticale : | Z15: =IF(MAX(B23:N23)>0.2,3,2) -> 2
B17: Rive Gauche | C17: =IF($F$15>=1,"Vert. 01",IF($F$15=0,"Rive Droite","")) -> Vert. 01 | D17: =IF($F$15>=2,"Vert. 02",IF($F$15=1,"Rive Droite","")) -> Rive Droite | E17: =IF($F$15>=3,"Vert. 03",IF($F$15=2,"Rive Droite","")) ->  | F17: =IF($F$15>=4,"Vert. 04",IF($F$15=3,"Rive Droite","")) ->  | G17: =IF($F$15>=5,"Vert. 05",IF($F$15=4,"Rive Droite","")) ->  | H17: =IF($F$15>=6,"Vert. 06",IF($F$15=5,"Rive Droite","")) ->  | I17: =IF($F$15>=7,"Vert. 07",IF($F$15=6,"Rive Droite","")) ->  | J17: =IF($F$15>=8,"Vert. 08",IF($F$15=7,"Rive Droite","")) ->  | K17: =IF($F$15>=9,"Vert. 09",IF($F$15=8,"Rive Droite","")) ->  | L17: =IF($F$15>=10,"Vert. 10",IF($F$15=9,"Rive Droite","")) ->  | M17: =IF($F$15>=11,"Vert. 11",IF($F$15=10,"Rive Droite","")) ->  | N17: =IF($F$15>=12,"Vert. 12",IF($F$15=11,"Rive Droite","")) ->  | P17: Rive Gauche | Q17: =IF($F$15>=1,"Vert. 01",IF($F$15=0,"Rive Droite","")) -> Vert. 01 | R17: =IF($F$15>=2,"Vert. 02",IF($F$15=1,"Rive Droite","")) -> Rive Droite | S17: =IF($F$15>=3,"Vert. 03",IF($F$15=2,"Rive Droite","")) ->  | T17: =IF($F$15>=4,"Vert. 04",IF($F$15=3,"Rive Droite","")) ->  | U17: =IF($F$15>=5,"Vert. 05",IF($F$15=4,"Rive Droite","")) ->  | V17: =IF($F$15>=6,"Vert. 06",IF($F$15=5,"Rive Droite","")) ->  | W17: =IF($F$15>=7,"Vert. 07",IF($F$15=6,"Rive Droite","")) ->  | X17: =IF($F$15>=8,"Vert. 08",IF($F$15=7,"Rive Droite","")) ->  | Y17: =IF($F$15>=9,"Vert. 09",IF($F$15=8,"Rive Droite","")) ->  | Z17: =IF($F$15>=10,"Vert. 10",IF($F$15=9,"Rive Droite","")) ->  | AA17: =IF($F$15>=11,"Vert. 11",IF($F$15=10,"Rive Droite","")) ->  | AB17: =IF($F$15>=12,"Vert. 12",IF($F$15=1,"Rive Droite","")) -> Rive Droite
B18: Distances à la rive retenues pour chaque verticale (en mètre par rapport à la rive gauche) : | P18: Distances à la rive conseillées pour chaque verticale (en mètre par rapport à la rive gauche) :
B19: =0 -> 0 | P19: =0 -> 0 | Q19: =0.05 -> 0.05 | R19: =IF(Q19="","",IF(R17="Rive Droite",$E$12,IF(Q19+$S$15<$E$12,Q19+$S$15,""))) -> 0.6
B20: Distances retenues entre verticales (en mètre) : | P20: Distances conseillées entre verticales (en mètre) :
B21: 0 | C21: =IF(AND(B$19<>"",C$19<>""),C$19-B$19,"") ->  | D21: =IF(AND(C$19<>"",D$19<>""),D$19-C$19,"") ->  | P21: 0 | Q21: =IF(AND(P$19<>"",Q$19<>""),Q$19-P$19,"") -> 0.05 | R21: =IF(AND(Q$19<>"",R$19<>""),R$19-Q$19,"") -> 0.55 | S21: =IF(AND(R$19<>"",S$19<>""),S$19-R$19,"") ->  | AD21: ≥
B22: Hauteurs d'eau mesurées à chaque verticale (en mètre) : | P22: Rive Gauche | Q22: =IF($F$15>=1,"Vert. 01",IF($F$15=0,"Rive Droite","")) -> Vert. 01 | R22: =IF($F$15>=2,"Vert. 02",IF($F$15=1,"Rive Droite","")) -> Rive Droite | S22: =IF($F$15>=3,"Vert. 03",IF($F$15=2,"Rive Droite","")) ->  | T22: =IF($F$15>=4,"Vert. 04",IF($F$15=3,"Rive Droite","")) ->  | U22: =IF($F$15>=5,"Vert. 05",IF($F$15=4,"Rive Droite","")) ->  | V22: =IF($F$15>=6,"Vert. 06",IF($F$15=5,"Rive Droite","")) ->  | W22: =IF($F$15>=7,"Vert. 07",IF($F$15=6,"Rive Droite","")) ->  | X22: =IF($F$15>=8,"Vert. 08",IF($F$15=7,"Rive Droite","")) ->  | Y22: =IF($F$15>=9,"Vert. 09",IF($F$15=8,"Rive Droite","")) ->  | Z22: =IF($F$15>=10,"Vert. 10",IF($F$15=9,"Rive Droite","")) ->  | AA22: =IF($F$15>=11,"Vert. 11",IF($F$15=10,"Rive Droite","")) ->  | AB22: =IF($F$15>=12,"Vert. 12",IF($F$15=1,"Rive Droite","")) -> Rive Droite
B24: Hauteurs retenues pour chaque point de mesure de la vitesse d'écoulement (en mètre par rapport au fond) : | P24: Hauteurs conseillées pour chaque point de mesure de la vitesse d'écoulement (en mètre par rapport au fond) :
Q25: =IF(OR(Q$17="",Q$17="Rive Droite"),"",IF($N$15<5,"",C$23)) ->  | R25: =IF(OR(R$17="",R$17="Rive Droite"),"",IF($N$15<5,"",D$23)) -> 
Q26: =IF(OR(Q$17="",Q$17="Rive Droite"),"",IF($N$15>1,C$23*0.8,"")) ->  | R26: =IF(OR(R$17="",R$17="Rive Droite"),"",IF($N$15>1,D$23*0.8,"")) -> 
Q27: =IF(OR(Q$17="",Q$17="Rive Droite"),"",IF($N$15=6,C$23*0.6,"")) -> 
Q28: =IF(OR(Q$17="",Q$17="Rive Droite"),"",IF(OR($N$15>2,$N$15=1),C$23*0.4,"")) -> 0 | R28: =IF(OR(R$17="",R$17="Rive Droite"),"",IF(OR($N$15>2,$N$15=1),D$23*0.4,"")) -> 
Q29: =IF(OR(Q$17="",Q$17="Rive Droite"),"",IF($N$15>1,C$23*0.2,"")) ->  | R29: =IF(OR(R$17="",R$17="Rive Droite"),"",IF($N$15>1,D$23*0.2,"")) ->  | U29: =IF(OR(U$17="",U$17="Rive Droite"),"",IF($N$15>1,G$23*0.2,"")) -> 
Q30: =IF(OR(Q$17="",Q$17="Rive Droite"),"",IF($N$15>=5,0,"")) -> 
B31: Vitesses d'écoulement mesurées à chaque point de mesure (en m/s) : | P31: Ecarts de mesure entre 2 points adjacents : | AC31: Positionnement des points de mesure
W32: =IF(OR(W$17="",W$17="Rive Droite"),"",IF($N$15<5,"",I$23)) ->  | AE32: Fil d'eau | AG32: =IF(SUM($B25:$N25)=0,"-",1-AVERAGE($B25:$N25)/$E$13) -> -
Q33: =IF(OR(Q$17="",Q$17="Rive Droite"),"",C33-C32) -> 0 | R33: =IF(OR(R$17="",R$17="Rive Droite"),"",D33-D32) ->  | AE33: 0.8 | AG33: =IF(SUM($B26:$N26)=0,"-",AVERAGE($B26:$N26)/$E$13) -> -
Q34: =IF(OR(Q$17="",Q$17="Rive Droite"),"",C34-C33) -> 0 | AE34: 0.6 | AG34: =IF(SUM($B27:$N27)=0,"-",AVERAGE($B27:$N27)/$E$13) -> -
Q35: 0 | AE35: 0.4 | AG35: =IF(SUM($B28:$N28)=0,"-",AVERAGE($B28:$N28)/$E$13) -> -
Q36: 0 | AE36: 0.2 | AG36: =IF(SUM($B29:$N29)=0,"-",AVERAGE($B29:$N29)/$E$13) -> -
Q37: 0 | AE37: Radier | AG37: =IF(SUM($B30:$N30)=0,"-",AVERAGE($B30:$N30)/$E$13) -> -
B38: Vitesses moyennes calculées pour chaque verticale selon le nombre de points de mesure (en m/s) : | P38: Vitesse maximum : | AC38: 1 2 3 5 6 | AE38: Hauteurs d'eau conseillées pour la mesure des vitesses | AG38: Hauteurs d'eau retenues pour la mesure des vitesses
B39: =IF(B17="Rive Gauche",(2*$E$11-1)*C39,IF(B17="Rive Droite",(2*$E$11-1)*A39,IF(COUNTA(B32:B37)=1,B35,IF(AND(COUNTA(B32:B37)=2,AND(B33<>"",B36<>"")),AVERAGE(B33,B36),IF(AND(COUNTA(B32:B37)=3,AND(B33<>"",B35<>"",B36<>"")),0.25*(B33+B35*2+B36),IF(AND(COUNTA(B32:B37)=5,AND(B32<>"",B33<>"",B35<>"",B36<>"",B37<>"")),0.1*(B32+3*B33+3*B35+2*B36+B37),IF(AND(COUNTA(B32:B37)=6,AND(B32<>"",B33<>"",B34<>"",B35<>"",B36<>"",B37<>"")),0.1*(B32+2*B33+2*B34+2*B35+2*B36+B37),""))))))) ->  | C39: =IF(C17="Rive Gauche",(2*$E$11-1)*D39,IF(C17="Rive Droite",(2*$E$11-1)*B39,IF(COUNTA(C32:C37)=1,C35,IF(AND(COUNTA(C32:C37)=2,AND(C33<>"",C36<>"")),AVERAGE(C33,C36),IF(AND(COUNTA(C32:C37)=3,AND(C33<>"",C35<>"",C36<>"")),0.25*(C33+C35*2+C36),IF(AND(COUNTA(C32:C37)=5,AND(C32<>"",C33<>"",C35<>"",C36<>"",C37<>"")),0.1*(C32+3*C33+3*C35+2*C36+C37),IF(AND(COUNTA(C32:C37)=6,AND(C32<>"",C33<>"",C34<>"",C35<>"",C36<>"",C37<>"")),0.1*(C32+2*C33+2*C34+2*C35+2*C36+C37),""))))))) ->  | D39: =IF(D17="Rive Gauche",(2*$E$11-1)*E39,IF(D17="Rive Droite",(2*$E$11-1)*C39,IF(COUNTA(D32:D37)=1,D35,IF(AND(COUNTA(D32:D37)=2,AND(D33<>"",D36<>"")),AVERAGE(D33,D36),IF(AND(COUNTA(D32:D37)=3,AND(D33<>"",D35<>"",D36<>"")),0.25*(D33+D35*2+D36),IF(AND(COUNTA(D32:D37)=5,AND(D32<>"",D33<>"",D35<>"",D36<>"",D37<>"")),0.1*(D32+3*D33+3*D35+2*D36+D37),IF(AND(COUNTA(D32:D37)=6,AND(D32<>"",D33<>"",D34<>"",D35<>"",D36<>"",D37<>"")),0.1*(D32+2*D33+2*D34+2*D35+2*D36+D37),""))))))) ->  | H39: =IF(H17="Rive Gauche",(2*$E$11-1)*I39,IF(H17="Rive Droite",(2*$E$11-1)*G39,IF(COUNTA(H32:H37)=1,H35,IF(AND(COUNTA(H32:H37)=2,AND(H33<>"",H36<>"")),AVERAGE(H33,H36),IF(AND(COUNTA(H32:H37)=3,AND(H33<>"",H35<>"",H36<>"")),0.25*(H33+H35*2+H36),IF(AND(COUNTA(H32:H37)=5,AND(H32<>"",H33<>"",H35<>"",H36<>"",H37<>"")),0.1*(H32+3*H33+3*H35+2*H36+H37),IF(AND(COUNTA(H32:H37)=6,AND(H32<>"",H33<>"",H34<>"",H35<>"",H36<>"",H37<>"")),0.1*(H32+2*H33+2*H34+2*H35+2*H36+H37),""))))))) ->  | P39: =MAX(C32:M37) -> 0 | AC39: Nombre de points de mesure
B40: Débits unitaires par verticale - Méthode de la section moyenne (en m3/s) :
C41: =IF(C21<>"",C21*AVERAGE(B23:C23)*AVERAGE(B39:C39),"") ->  | D41: =IF(D21<>"",D21*AVERAGE(C23:D23)*AVERAGE(C39:D39),"") ->  | N41: =IF(N21<>"",N21*AVERAGE(M23:N23)*AVERAGE(M39:N39),"") -> 
B42: =IF(B41="","",B41/$H$44) ->  | C42: =IF(C41="","",C41/$H$44) -> 
B43: =COUNTIF(A42:M42,">0,1")/COUNTA(A42:M42) -> 0 | C43: des débits unitaires dépassent 10% du débit total | H43: =COUNTIF(Q33:AB37,">0,2xP39")/COUNTA(Q33:AB37) -> 0 | I43: de mesures adjacentes dépassent 20% de la vitesse max
B44: Débits sur la totalité de la section de mesure : | H44: =SUM(C41:N41) -> 0 | J44: =H44*60*60 -> 0 | L44: =J44*24 -> 0
B45: Surface mouillée totale : | F45: =IF(C21="",0,C21*AVERAGE(B23:C23))+IF(D21="",0,D21*AVERAGE(C23:D23))+IF(E21="",0,E21*AVERAGE(D23:E23))+IF(F21="",0,F21*AVERAGE(E23:F23))+IF(G21="",0,G21*AVERAGE(F23:G23))+IF(H21="",0,H21*AVERAGE(G23:H23))+IF(I21="",0,I21*AVERAGE(H23:I23))+IF(J21="",0,J21*AVERAGE(I23:J23))+IF(K21="",0,K21*AVERAGE(J23:K23))+IF(L21="",0,L21*AVERAGE(K23:L23))+IF(M21="",0,M21*AVERAGE(L23:M23))+IF(N21="",0,N21*AVERAGE(M23:N23)) -> 0 | H45: Vitesse moyenne jaugée : | L45: =H44/F45 -> 
P47: Formules de calcul des vitesses moyennes selon le nombre de points de mesure par verticale :
Q48: Méthode à 1 point : Vitesse moyenne = V0,4
Q49: Méthode à 2 points : Vitesse moyenne = 0,5 x (V0,2 + V0,8)
Q50: Méthode à 3 points : Vitesse moyenne = 0,25 x (V0,2 + 2V0,6 + V0,8)
Q51: Méthode à 5 points : Vitesse moyenne = 0,1 x (Vsurface + 3V0,2 + 3V0,6 + 2V0,8 + Vfond)
Q52: Méthode à 6 points : Vitesse moyenne = 0,1 x (Vsurface + 2V0,2 + 2V0,4 + 2V0,6 + 2V0,8 + Vfond)
P54: Coefficients de rive :
Q55: kr = 1 : Berges lisses de forme rectangulaire è Débit maximal
Q56: kr = 0,8 : Valeur par défaut à utiliser pour les canaux rectangulaires
Q57: kr = 0,5 : Berges de forme triangulaire è Débit nul
P59: Nombre de verticales :
Q60: Le débit unitaire de chaque verticale doit être inférieur à 5% du débit total, et en aucun cas il ne doit dépasser 10% du débit total
Q61: La distance entre 2 verticales doit être supérieure à la largeur du capteur
Q62: Les première et dernière verticales doivent être aussi proche que possible de la bordure de l'eau
P64: Nombre de points par verticale :
Q65: La différence des mesures de vitesse entre 2 points adjacents ne doit pas dépasser 20% de la vitesse la plus élevée
Q66: Les incertitudes de mesure en fonction du nombre de point sont les suivantes : 5 points 2,5%, 2 points 3,5%, 1 point 7,5%
P68: Méthode de mesure par point:
Q69: Le chenal de mesure doit être rectiligne, de section et de pente uniforme, présenter des longueurs droites en amont ≥ 6 fois la largeur du chanal et en aval ≥ 3 fois la largeur du chenal
Q70: Les directions d'écoulement doivent être parrallèles les unes aux autres et perpendiculaires à la section de mesurage
Q71: Le dispositif utilisé pour réaliser le mesurage de la vitesse doit être positionné dans l'axe du flux
Q72: Le dispositif utilisé pour réaliser le mesurage de la vitesse doit être maintenu en position pendant au moins 30 secondes
Q73: Le niveau d'eau doit être lu au début et à la fin de la période de mesurage
Q74: Deux cycles complets de mesurage doivent être réalisés, si les résultats diffèrent de plus de 10% l'opération doit être répétée
Q75: Les courantomètres électromagnétiques ne doivent pas être utilisés lorsque la hauteur d'eau est inférieure à 3 fois l'épaisseur du capteur
Q76: Les courantomètres rotatifs ne doivent pas être utilisés lorsque la hauteur d'eau est inférieure à 4 fois le diamètre de l'hélice utilisée

Sheet 2 Points
B1: JAUGEAGE PAR EXPLORATION DU CHAMP DES VITESSES
B2: METHODE POINTS ET FORMULES NORMALISEES
D4: Date : | H4: Maître d'ouvrage :
D5: Heure de début : | H5: Nom de la prise :
D6: Heure de fin : | H6: Localisation :
D7: Durée de mesurage : | E7: =E6-E5 -> 00:00:00 | H7: GPS : | I7: X : | L7: Y :
D9: Equipement en place : | H9: Equipement utilisé : | P9: Nombre de verticales recommandées par la norme NF EN ISO 748 selon la largeur du chenal
D10: Forme du chenal : | H10: Type : | P10: Version de Janvier 2002 | V10: Version de Avril 2009 | AA10: Version de Décembre 2021
D11: Coefficient de rive : | E11: 0.8 | H11: Référence de l'appareil : | P11: < 0,5 | Q11: >0,5 et <1 | R11: >1 et <3 | S11: >3 et <5 | T11: >5 et <10 | U11: > 10 | V11: < 0,5 | W11: >0,5 et <1 | X11: >1 et <3 | Y11: >3 et <5 | Z11: > 5 | AA11: < 0,5 | AB11: >0,5 et <5 | AC11: > 5
D12: Largeur du chenal : | E12: 0.6 | H12: Référence de l'hélice : | P12: 3 ou 4 | Q12: 4 ou 5 | R12: 5 à 8 | S12: 8 à 10 | T12: 10 à 20 | U12: >20 | V12: 5 ou 6 | W12: 6 ou 7 | X12: 7 à 12 | Y12: 13 à 16 | Z12: > 22 | AA12: ≥ 15 | AB12: ≥ 20 | AC12: ≥ 22
D13: Profondeur moyenne : | E13: 0.45 | H13: Opérateur(s) : | P13: =IF($E$12<0.5,"3 ou 4",IF($E$12<1,"4 ou 5",IF($E$12<3,"5 à 8",IF($E$12<5,"8 à 10",IF($E$12<10,"10 à 20","> 20"))))) -> 4 ou 5 | V13: =IF($E$12<0.5,"5 ou 6",IF($E$12<1,"6 ou 7",IF($E$12<3,"7 à 12",IF($E$12<5,"13 à 16","> 22")))) -> 6 ou 7 | AA13: =IF($E$12<0.5,"≥ 15",IF($E$12<5,"≥ 20","≥ 22")) -> ≥ 20
E15: Nombre de verticales retenues : | F15: 2 | M15: Nombre de points retenus par verticale : | N15: 2 | R15: Distance entre verticales : | S15: =IF(F15=1,E12/2,($E$12-0.1)/($F$15-1)) -> 0.5 | U15: Nombre de points conseillés par verticale : | Z15: =IF(MAX(B23:N23)>0.2,3,2) -> 2
B17: Rive Gauche | C17: =IF($F$15>=1,"Vert. 01",IF($F$15=0,"Rive Droite","")) -> Vert. 01 | D17: =IF($F$15>=2,"Vert. 02",IF($F$15=1,"Rive Droite","")) -> Vert. 02 | E17: =IF($F$15>=3,"Vert. 03",IF($F$15=2,"Rive Droite","")) -> Rive Droite | F17: =IF($F$15>=4,"Vert. 04",IF($F$15=3,"Rive Droite","")) ->  | G17: =IF($F$15>=5,"Vert. 05",IF($F$15=4,"Rive Droite","")) ->  | H17: =IF($F$15>=6,"Vert. 06",IF($F$15=5,"Rive Droite","")) ->  | I17: =IF($F$15>=7,"Vert. 07",IF($F$15=6,"Rive Droite","")) ->  | J17: =IF($F$15>=8,"Vert. 08",IF($F$15=7,"Rive Droite","")) ->  | K17: =IF($F$15>=9,"Vert. 09",IF($F$15=8,"Rive Droite","")) ->  | L17: =IF($F$15>=10,"Vert. 10",IF($F$15=9,"Rive Droite","")) ->  | M17: =IF($F$15>=11,"Vert. 11",IF($F$15=10,"Rive Droite","")) ->  | N17: =IF($F$15>=12,"Vert. 12",IF($F$15=11,"Rive Droite","")) ->  | P17: Rive Gauche | Q17: =IF($F$15>=1,"Vert. 01",IF($F$15=0,"Rive Droite","")) -> Vert. 01 | R17: =IF($F$15>=2,"Vert. 02",IF($F$15=1,"Rive Droite","")) -> Vert. 02 | S17: =IF($F$15>=3,"Vert. 03",IF($F$15=2,"Rive Droite","")) -> Rive Droite | T17: =IF($F$15>=4,"Vert. 04",IF($F$15=3,"Rive Droite","")) ->  | U17: =IF($F$15>=5,"Vert. 05",IF($F$15=4,"Rive Droite","")) ->  | V17: =IF($F$15>=6,"Vert. 06",IF($F$15=5,"Rive Droite","")) ->  | W17: =IF($F$15>=7,"Vert. 07",IF($F$15=6,"Rive Droite","")) ->  | X17: =IF($F$15>=8,"Vert. 08",IF($F$15=7,"Rive Droite","")) ->  | Y17: =IF($F$15>=9,"Vert. 09",IF($F$15=8,"Rive Droite","")) ->  | Z17: =IF($F$15>=10,"Vert. 10",IF($F$15=9,"Rive Droite","")) ->  | AA17: =IF($F$15>=11,"Vert. 11",IF($F$15=10,"Rive Droite","")) ->  | AB17: =IF($F$15>=12,"Vert. 12",IF($F$15=1,"Rive Droite","")) -> 
B18: Distances à la rive retenues pour chaque verticale (en mètre par rapport à la rive gauche) : | P18: Distances à la rive conseillées pour chaque verticale (en mètre par rapport à la rive gauche) :
B19: =0 -> 0 | P19: =0 -> 0 | Q19: =0.05 -> 0.05 | R19: =IF(Q19="","",IF(R17="Rive Droite",$E$12,IF(Q19+$U$13<$E$12,Q19+$U$13,""))) -> 0.05 | S19: 0.6
B20: Distances retenues entre verticales (en mètre) : | P20: Distances conseillées entre verticales (en mètre) :
B21: 0 | C21: =IF(AND(B$19<>"",C$19<>""),C$19-B$19,"") ->  | D21: =IF(AND(C$19<>"",D$19<>""),D$19-C$19,"") ->  | P21: 0 | Q21: =IF(AND(P$19<>"",Q$19<>""),Q$19-P$19,"") -> 0.05 | R21: =IF(AND(Q$19<>"",R$19<>""),R$19-Q$19,"") -> 0 | S21: =IF(AND(R$19<>"",S$19<>""),S$19-R$19,"") -> 0.55
B22: Hauteurs d'eau mesurées à chaque verticale (en mètre) : | P22: Rive Gauche | Q22: =IF($F$15>=1,"Vert. 01",IF($F$15=0,"Rive Droite","")) -> Vert. 01 | R22: =IF($F$15>=2,"Vert. 02",IF($F$15=1,"Rive Droite","")) -> Vert. 02 | S22: =IF($F$15>=3,"Vert. 03",IF($F$15=2,"Rive Droite","")) -> Rive Droite | T22: =IF($F$15>=4,"Vert. 04",IF($F$15=3,"Rive Droite","")) ->  | U22: =IF($F$15>=5,"Vert. 05",IF($F$15=4,"Rive Droite","")) ->  | V22: =IF($F$15>=6,"Vert. 06",IF($F$15=5,"Rive Droite","")) ->  | W22: =IF($F$15>=7,"Vert. 07",IF($F$15=6,"Rive Droite","")) ->  | X22: =IF($F$15>=8,"Vert. 08",IF($F$15=7,"Rive Droite","")) ->  | Y22: =IF($F$15>=9,"Vert. 09",IF($F$15=8,"Rive Droite","")) ->  | Z22: =IF($F$15>=10,"Vert. 10",IF($F$15=9,"Rive Droite","")) ->  | AA22: =IF($F$15>=11,"Vert. 11",IF($F$15=10,"Rive Droite","")) ->  | AB22: =IF($F$15>=12,"Vert. 12",IF($F$15=1,"Rive Droite","")) -> 
B24: Hauteurs retenues pour chaque point de mesure de la vitesse d'écoulement (en mètre par rapport au fond) : | P24: Hauteurs conseillées pour chaque point de mesure de la vitesse d'écoulement (en mètre par rapport au fond) :
Q25: =IF(OR(Q$17="",Q$17="Rive Droite"),"",IF($N$15<5,"",C$23)) ->  | R25: =IF(OR(R$17="",R$17="Rive Droite"),"",IF($N$15<5,"",D$23)) -> 
Q26: =IF(OR(Q$17="",Q$17="Rive Droite"),"",IF($N$15>1,C$23*0.8,"")) -> 0 | R26: =IF(OR(R$17="",R$17="Rive Droite"),"",IF($N$15>1,D$23*0.8,"")) -> 0
Q27: =IF(OR(Q$17="",Q$17="Rive Droite"),"",IF($N$15=6,C$23*0.6,"")) -> 
Q28: =IF(OR(Q$17="",Q$17="Rive Droite"),"",IF(OR($N$15>2,$N$15=1),C$23*0.8,"")) ->  | R28: =IF(OR(R$17="",R$17="Rive Droite"),"",IF($N$15>=3,D$23*0.4,"")) -> 
Q29: =IF(OR(Q$17="",Q$17="Rive Droite"),"",IF($N$15>1,C$23*0.2,"")) -> 0 | R29: =IF(OR(R$17="",R$17="Rive Droite"),"",IF($N$15>1,D$23*0.2,"")) -> 0 | U29: =IF(OR(U$17="",U$17="Rive Droite"),"",IF($N$15>1,G$23*0.2,"")) -> 
Q30: =IF(OR(Q$17="",Q$17="Rive Droite"),"",IF($N$15>=5,0,"")) -> 
B31: Vitesses d'écoulement mesurées à chaque point de mesure (en m/s) : | P31: Ecarts de mesure entre 2 points adjacents : | AC31: Positionnement des points de mesure
W32: =IF(OR(W$17="",W$17="Rive Droite"),"",IF($N$15<5,"",I$23)) ->  | AE32: Fil d'eau | AG32: =IF(SUM($B25:$N25)=0,"-",1-AVERAGE($B25:$N25)/$E$13) -> -
Q33: =IF(OR(Q$17="",Q$17="Rive Droite"),"",C33-C32) -> 0 | R33: =IF(OR(R$17="",R$17="Rive Droite"),"",D33-D32) -> 0 | AE33: 0.8 | AG33: =IF(SUM($B26:$N26)=0,"-",AVERAGE($B26:$N26)/$E$13) -> -
Q34: =IF(OR(Q$17="",Q$17="Rive Droite"),"",C34-C33) -> 0 | R34: 0 | AE34: 0.6 | AG34: =IF(SUM($B27:$N27)=0,"-",AVERAGE($B27:$N27)/$E$13) -> -
Q35: 0 | R35: 0 | AE35: 0.4 | AG35: =IF(SUM($B28:$N28)=0,"-",AVERAGE($B28:$N28)/$E$13) -> -
Q36: 0 | R36: 0 | AE36: 0.2 | AG36: =IF(SUM($B29:$N29)=0,"-",AVERAGE($B29:$N29)/$E$13) -> -
Q37: 0 | R37: 0 | AE37: Radier | AG37: =IF(SUM($B30:$N30)=0,"-",AVERAGE($B30:$N30)/$E$13) -> -
B38: Vitesses moyennes calculées pour chaque verticale selon le nombre de points de mesure (en m/s) : | P38: Vitesse maximum : | AC38: 1 2 3 5 6 | AE38: Hauteurs d'eau conseillées pour la mesure des vitesses | AG38: Hauteurs d'eau retenues pour la mesure des vitesses
B39: =IF(B17="Rive Gauche",(2*$E$11-1)*C39,IF(B17="Rive Droite",(2*$E$11-1)*A39,IF(COUNTA(B32:B37)=1,B35,IF(AND(COUNTA(B32:B37)=2,AND(B33<>"",B36<>"")),AVERAGE(B33,B36),IF(AND(COUNTA(B32:B37)=3,AND(B33<>"",B35<>"",B36<>"")),0.25*(B33+B35*2+B36),IF(AND(COUNTA(B32:B37)=5,AND(B32<>"",B33<>"",B35<>"",B36<>"",B37<>"")),0.1*(B32+3*B33+3*B35+2*B36+B37),IF(AND(COUNTA(B32:B37)=6,AND(B32<>"",B33<>"",B34<>"",B35<>"",B36<>"",B37<>"")),0.1*(B32+2*B33+2*B34+2*B35+2*B36+B37),""))))))) ->  | C39: =IF(C17="Rive Gauche",(2*$E$11-1)*D39,IF(C17="Rive Droite",(2*$E$11-1)*B39,IF(COUNTA(C32:C37)=1,C35,IF(AND(COUNTA(C32:C37)=2,AND(C33<>"",C36<>"")),AVERAGE(C33,C36),IF(AND(COUNTA(C32:C37)=3,AND(C33<>"",C35<>"",C36<>"")),0.25*(C33+C35*2+C36),IF(AND(COUNTA(C32:C37)=5,AND(C32<>"",C33<>"",C35<>"",C36<>"",C37<>"")),0.1*(C32+3*C33+3*C35+2*C36+C37),IF(AND(COUNTA(C32:C37)=6,AND(C32<>"",C33<>"",C34<>"",C35<>"",C36<>"",C37<>"")),0.1*(C32+2*C33+2*C34+2*C35+2*C36+C37),""))))))) ->  | D39: =IF(D17="Rive Gauche",(2*$E$11-1)*E39,IF(D17="Rive Droite",(2*$E$11-1)*C39,IF(COUNTA(D32:D37)=1,D35,IF(AND(COUNTA(D32:D37)=2,AND(D33<>"",D36<>"")),AVERAGE(D33,D36),IF(AND(COUNTA(D32:D37)=3,AND(D33<>"",D35<>"",D36<>"")),0.25*(D33+D35*2+D36),IF(AND(COUNTA(D32:D37)=5,AND(D32<>"",D33<>"",D35<>"",D36<>"",D37<>"")),0.1*(D32+3*D33+3*D35+2*D36+D37),IF(AND(COUNTA(D32:D37)=6,AND(D32<>"",D33<>"",D34<>"",D35<>"",D36<>"",D37<>"")),0.1*(D32+2*D33+2*D34+2*D35+2*D36+D37),""))))))) ->  | H39: =IF(H17="Rive Gauche",(2*$E$11-1)*I39,IF(H17="Rive Droite",(2*$E$11-1)*G39,IF(COUNTA(H32:H37)=1,H35,IF(AND(COUNTA(H32:H37)=2,AND(H33<>"",H36<>"")),AVERAGE(H33,H36),IF(AND(COUNTA(H32:H37)=3,AND(H33<>"",H35<>"",H36<>"")),0.25*(H33+H35*2+H36),IF(AND(COUNTA(H32:H37)=5,AND(H32<>"",H33<>"",H35<>"",H36<>"",H37<>"")),0.1*(H32+3*H33+3*H35+2*H36+H37),IF(AND(COUNTA(H32:H37)=6,AND(H32<>"",H33<>"",H34<>"",H35<>"",H36<>"",H37<>"")),0.1*(H32+2*H33+2*H34+2*H35+2*H36+H37),""))))))) ->  | P39: =MAX(C32:M37) -> 0 | AC39: Nombre de points de mesure
B40: Débits unitaires par verticale - Méthode de la section moyenne (en m3/s) :
C41: =IF(C21<>"",C21*AVERAGE(B23:C23)*AVERAGE(B39:C39),"") ->  | D41: =IF(D21<>"",D21*AVERAGE(C23:D23)*AVERAGE(C39:D39),"") ->  | N41: =IF(N21<>"",N21*AVERAGE(M23:N23)*AVERAGE(M39:N39),"") -> 
B42: =IF(B41="","",B41/$H$44) ->  | C42: =IF(C41="","",C41/$H$44) -> 
B43: =COUNTIF(A42:M42,">0,1")/COUNTA(A42:M42) -> 0 | C43: des débits unitaires dépassent 10% du débit total | H43: =COUNTIF(Q33:AB37,">0,2xP39")/COUNTA(Q33:AB37) -> 0 | I43: de mesures adjacentes dépassent 20% de la vitesse max
B44: Débits sur la totalité de la section de mesure : | H44: =SUM(C41:N41) -> 0 | J44: =H44*60*60 -> 0 | L44: =J44*24 -> 0
B45: Surface mouillée totale : | F45: =IF(C21="",0,C21*AVERAGE(B23:C23))+IF(D21="",0,D21*AVERAGE(C23:D23))+IF(E21="",0,E21*AVERAGE(D23:E23))+IF(F21="",0,F21*AVERAGE(E23:F23))+IF(G21="",0,G21*AVERAGE(F23:G23))+IF(H21="",0,H21*AVERAGE(G23:H23))+IF(I21="",0,I21*AVERAGE(H23:I23))+IF(J21="",0,J21*AVERAGE(I23:J23))+IF(K21="",0,K21*AVERAGE(J23:K23))+IF(L21="",0,L21*AVERAGE(K23:L23))+IF(M21="",0,M21*AVERAGE(L23:M23))+IF(N21="",0,N21*AVERAGE(M23:N23)) -> 0 | H45: Vitesse moyenne jaugée : | L45: =H44/F45 -> 
P47: Formules de calcul des vitesses moyennes selon le nombre de points de mesure par verticale :
Q48: Méthode à 1 point : Vitesse moyenne = V0,4
Q49: Méthode à 2 points : Vitesse moyenne = 0,5 x (V0,2 + V0,8)
Q50: Méthode à 3 points : Vitesse moyenne = 0,25 x (V0,2 + 2V0,6 + V0,8)
Q51: Méthode à 5 points : Vitesse moyenne = 0,1 x (Vsurface + 3V0,2 + 3V0,6 + 2V0,8 + Vfond)
Q52: Méthode à 6 points : Vitesse moyenne = 0,1 x (Vsurface + 2V0,2 + 2V0,4 + 2V0,6 + 2V0,8 + Vfond)
P54: Coefficients de rive :
Q55: kr = 1 : Berges lisses de forme rectangulaire è Débit maximal
Q56: kr = 0,8 : Valeur par défaut à utiliser pour les canaux rectangulaires
Q57: kr = 0,5 : Berges de forme triangulaire è Débit nul
P59: Nombre de verticales :
Q60: Le débit unitaire de chaque verticale doit être inférieur à 5% du débit total, et en aucun cas il ne doit dépasser 10% du débit total
Q61: La distance entre 2 verticales doit être supérieure à la largeur du capteur
Q62: Les première et dernière verticales doivent être aussi proche que possible de la bordure de l'eau
P64: Nombre de points par verticale :
Q65: La différence des mesures de vitesse entre 2 points adjacents ne doit pas dépasser 20% de la vitesse la plus élevée
Q66: Les incertitudes de mesure en fonction du nombre de point sont les suivantes : 5 points 2,5%, 2 points 3,5%, 1 point 7,5%
P68: Méthode de mesure par point:
Q69: Le chenal de mesure doit être rectiligne, de section et de pente uniforme, présenter des longueurs droites en amont ≥ 6 fois la largeur du chanal et en aval ≥ 3 fois la largeur du chenal
Q70: Les directions d'écoulement doivent être parrallèles les unes aux autres et perpendiculaires à la section de mesurage
Q71: Le dispositif utilisé pour réaliser le mesurage de la vitesse doit être positionné dans l'axe du flux
Q72: Le dispositif utilisé pour réaliser le mesurage de la vitesse doit être maintenu en position pendant au moins 30 secondes
Q73: Le niveau d'eau doit être lu au début et à la fin de la période de mesurage
Q74: Deux cycles complets de mesurage doivent être réalisés, si les résultats diffèrent de plus de 10% l'opération doit être répétée
Q75: Les courantomètres électromagnétiques ne doivent pas être utilisés lorsque la hauteur d'eau est inférieure à 3 fois l'épaisseur du capteur
Q76: Les courantomètres rotatifs ne doivent pas être utilisés lorsque la hauteur d'eau est inférieure à 4 fois le diamètre de l'hélice utilisée

Sheet 3 Points
B1: JAUGEAGE PAR EXPLORATION DU CHAMP DES VITESSES
B2: METHODE POINTS ET FORMULES NORMALISEES
D4: Date : | H4: Maître d'ouvrage :
D5: Heure de début : | H5: Nom de la prise :
D6: Heure de fin : | H6: Localisation :
D7: Durée de mesurage : | E7: =E6-E5 -> 00:00:00 | H7: GPS : | I7: X : | L7: Y :
D9: Equipement en place : | H9: Equipement utilisé : | P9: Nombre de verticales recommandées par la norme NF EN ISO 748 selon la largeur du chenal
D10: Forme du chenal : | H10: Type : | P10: Version de Janvier 2002 | V10: Version de Avril 2009 | AA10: Version de Décembre 2021
D11: Coefficient de rive : | E11: 0.8 | H11: Référence de l'appareil : | P11: < 0,5 | Q11: >0,5 et <1 | R11: >1 et <3 | S11: >3 et <5 | T11: >5 et <10 | U11: > 10 | V11: < 0,5 | W11: >0,5 et <1 | X11: >1 et <3 | Y11: >3 et <5 | Z11: > 5 | AA11: < 0,5 | AB11: >0,5 et <5 | AC11: > 5
D12: Largeur du chenal : | E12: 0.6 | H12: Référence de l'hélice : | P12: 3 ou 4 | Q12: 4 ou 5 | R12: 5 à 8 | S12: 8 à 10 | T12: 10 à 20 | U12: >20 | V12: 5 ou 6 | W12: 6 ou 7 | X12: 7 à 12 | Y12: 13 à 16 | Z12: > 22 | AA12: ≥ 15 | AB12: ≥ 20 | AC12: ≥ 22
D13: Profondeur moyenne : | E13: 0.45 | H13: Opérateur(s) : | P13: =IF($E$12<0.5,"3 ou 4",IF($E$12<1,"4 ou 5",IF($E$12<3,"5 à 8",IF($E$12<5,"8 à 10",IF($E$12<10,"10 à 20","> 20"))))) -> 4 ou 5 | V13: =IF($E$12<0.5,"5 ou 6",IF($E$12<1,"6 ou 7",IF($E$12<3,"7 à 12",IF($E$12<5,"13 à 16","> 22")))) -> 6 ou 7 | AA13: =IF($E$12<0.5,"≥ 15",IF($E$12<5,"≥ 20","≥ 22")) -> ≥ 20
E15: Nombre de verticales retenues : | F15: 6 | M15: Nombre de points retenus par verticale : | N15: 3 | R15: Distance entre verticales : | S15: =IF(F15=1,E12/2,($E$12-0.1)/($F$15-1)) -> 0.1 | U15: Nombre de points conseillés par verticale : | Z15: =IF(MAX(B23:N23)>0.2,3,2) -> 2
B17: Rive Gauche | C17: =IF($F$15>=1,"Vert. 01",IF($F$15=0,"Rive Droite","")) -> Vert. 01 | D17: =IF($F$15>=2,"Vert. 02",IF($F$15=1,"Rive Droite","")) -> Vert. 02 | E17: =IF($F$15>=3,"Vert. 03",IF($F$15=2,"Rive Droite","")) -> Vert. 03 | F17: =IF($F$15>=4,"Vert. 04",IF($F$15=3,"Rive Droite","")) -> Vert. 04 | G17: =IF($F$15>=5,"Vert. 05",IF($F$15=4,"Rive Droite","")) -> Vert. 05 | H17: =IF($F$15>=6,"Vert. 06",IF($F$15=5,"Rive Droite","")) -> Vert. 06 | I17: =IF($F$15>=7,"Vert. 07",IF($F$15=6,"Rive Droite","")) -> Rive Droite | J17: =IF($F$15>=8,"Vert. 08",IF($F$15=7,"Rive Droite","")) ->  | K17: =IF($F$15>=9,"Vert. 09",IF($F$15=8,"Rive Droite","")) ->  | L17: =IF($F$15>=10,"Vert. 10",IF($F$15=9,"Rive Droite","")) ->  | M17: =IF($F$15>=11,"Vert. 11",IF($F$15=10,"Rive Droite","")) ->  | N17: =IF($F$15>=12,"Vert. 12",IF($F$15=11,"Rive Droite","")) ->  | P17: Rive Gauche | Q17: =IF($F$15>=1,"Vert. 01",IF($F$15=0,"Rive Droite","")) -> Vert. 01 | R17: =IF($F$15>=2,"Vert. 02",IF($F$15=1,"Rive Droite","")) -> Vert. 02 | S17: =IF($F$15>=3,"Vert. 03",IF($F$15=2,"Rive Droite","")) -> Vert. 03 | T17: =IF($F$15>=4,"Vert. 04",IF($F$15=3,"Rive Droite","")) -> Vert. 04 | U17: =IF($F$15>=5,"Vert. 05",IF($F$15=4,"Rive Droite","")) -> Vert. 05 | V17: =IF($F$15>=6,"Vert. 06",IF($F$15=5,"Rive Droite","")) -> Vert. 06 | W17: =IF($F$15>=7,"Vert. 07",IF($F$15=6,"Rive Droite","")) -> Rive Droite | X17: =IF($F$15>=8,"Vert. 08",IF($F$15=7,"Rive Droite","")) ->  | Y17: =IF($F$15>=9,"Vert. 09",IF($F$15=8,"Rive Droite","")) ->  | Z17: =IF($F$15>=10,"Vert. 10",IF($F$15=9,"Rive Droite","")) ->  | AA17: =IF($F$15>=11,"Vert. 11",IF($F$15=10,"Rive Droite","")) ->  | AB17: =IF($F$15>=12,"Vert. 12",IF($F$15=1,"Rive Droite","")) -> 
B18: Distances à la rive retenues pour chaque verticale (en mètre par rapport à la rive gauche) : | P18: Distances à la rive conseillées pour chaque verticale (en mètre par rapport à la rive gauche) :
B19: =0 -> 0 | P19: =0 -> 0 | Q19: =0.05 -> 0.05 | R19: =IF(Q19="","",IF(R17="Rive Droite",$E$12,IF(Q19+$U$13<$E$12,Q19+$U$13,""))) -> 0.05 | S19: 0.05 | T19: 0.05 | U19: 0.05 | V19: 0.05 | W19: 0.6 | AD19: 264
B20: Distances retenues entre verticales (en mètre) : | P20: Distances conseillées entre verticales (en mètre) : | AD20: 24
B21: 0 | C21: =IF(AND(B$19<>"",C$19<>""),C$19-B$19,"") ->  | D21: =IF(AND(C$19<>"",D$19<>""),D$19-C$19,"") ->  | P21: 0 | Q21: =IF(AND(P$19<>"",Q$19<>""),Q$19-P$19,"") -> 0.05 | R21: =IF(AND(Q$19<>"",R$19<>""),R$19-Q$19,"") -> 0 | S21: =IF(AND(R$19<>"",S$19<>""),S$19-R$19,"") -> 0 | T21: 0 | U21: 0 | V21: 0 | W21: 0.55 | AD21: 365
B22: Hauteurs d'eau mesurées à chaque verticale (en mètre) : | P22: Rive Gauche | Q22: =IF($F$15>=1,"Vert. 01",IF($F$15=0,"Rive Droite","")) -> Vert. 01 | R22: =IF($F$15>=2,"Vert. 02",IF($F$15=1,"Rive Droite","")) -> Vert. 02 | S22: =IF($F$15>=3,"Vert. 03",IF($F$15=2,"Rive Droite","")) -> Vert. 03 | T22: =IF($F$15>=4,"Vert. 04",IF($F$15=3,"Rive Droite","")) -> Vert. 04 | U22: =IF($F$15>=5,"Vert. 05",IF($F$15=4,"Rive Droite","")) -> Vert. 05 | V22: =IF($F$15>=6,"Vert. 06",IF($F$15=5,"Rive Droite","")) -> Vert. 06 | W22: =IF($F$15>=7,"Vert. 07",IF($F$15=6,"Rive Droite","")) -> Rive Droite | X22: =IF($F$15>=8,"Vert. 08",IF($F$15=7,"Rive Droite","")) ->  | Y22: =IF($F$15>=9,"Vert. 09",IF($F$15=8,"Rive Droite","")) ->  | Z22: =IF($F$15>=10,"Vert. 10",IF($F$15=9,"Rive Droite","")) ->  | AA22: =IF($F$15>=11,"Vert. 11",IF($F$15=10,"Rive Droite","")) ->  | AB22: =IF($F$15>=12,"Vert. 12",IF($F$15=1,"Rive Droite","")) ->  | AD22: =+AD19*AD20*AD21 -> 2312640
B24: Hauteurs retenues pour chaque point de mesure de la vitesse d'écoulement (en mètre par rapport au fond) : | P24: Hauteurs conseillées pour chaque point de mesure de la vitesse d'écoulement (en mètre par rapport au fond) :
Q25: =IF(OR(Q$17="",Q$17="Rive Droite"),"",IF($N$15<5,"",C$23)) ->  | R25: =IF(OR(R$17="",R$17="Rive Droite"),"",IF($N$15<5,"",D$23)) -> 
Q26: =IF(OR(Q$17="",Q$17="Rive Droite"),"",IF($N$15>1,C$23*0.8,"")) -> 0 | R26: =IF(OR(R$17="",R$17="Rive Droite"),"",IF($N$15>1,D$23*0.8,"")) -> 0 | S26: 0 | T26: 0 | U26: 0 | V26: 0
Q27: =IF(OR(Q$17="",Q$17="Rive Droite"),"",IF($N$15=6,C$23*0.6,"")) -> 
Q28: =IF(OR(Q$17="",Q$17="Rive Droite"),"",IF(OR($N$15>2,$N$15=1),C$23*0.4,"")) -> 0 | R28: =IF(OR(R$17="",R$17="Rive Droite"),"",IF(OR($N$15>2,$N$15=1),D$23*0.4,"")) -> 0 | S28: 0 | T28: 0 | U28: 0 | V28: 0
Q29: =IF(OR(Q$17="",Q$17="Rive Droite"),"",IF($N$15>1,C$23*0.2,"")) -> 0 | R29: =IF(OR(R$17="",R$17="Rive Droite"),"",IF($N$15>1,D$23*0.2,"")) -> 0 | S29: 0 | T29: 0 | U29: =IF(OR(U$17="",U$17="Rive Droite"),"",IF($N$15>1,G$23*0.2,"")) -> 0 | V29: 0
Q30: =IF(OR(Q$17="",Q$17="Rive Droite"),"",IF($N$15>=5,0,"")) -> 
B31: Vitesses d'écoulement mesurées pendant 30 secondes à chaque point de mesure (en m/s) : | P31: Ecarts de mesure entre 2 points adjacents : | AC31: Positionnement des points de mesure
W32: =IF(OR(W$17="",W$17="Rive Droite"),"",IF($N$15<5,"",I$23)) ->  | AE32: Fil d'eau | AG32: =IF(SUM($B25:$N25)=0,"-",1-AVERAGE($B25:$N25)/$E$13) -> -
Q33: =IF(OR(Q$17="",Q$17="Rive Droite"),"",C33-C32) -> 0 | R33: =IF(OR(R$17="",R$17="Rive Droite"),"",D33-D32) -> 0 | S33: 0 | T33: 0 | U33: 0 | V33: 0 | AE33: 0.8 | AG33: =IF(SUM($B26:$N26)=0,"-",AVERAGE($B26:$N26)/$E$13) -> -
Q34: =IF(OR(Q$17="",Q$17="Rive Droite"),"",C34-C33) -> 0 | R34: 0 | S34: 0 | T34: 0 | U34: 0 | V34: 0 | AE34: 0.6 | AG34: =IF(SUM($B27:$N27)=0,"-",AVERAGE($B27:$N27)/$E$13) -> -
Q35: 0 | R35: 0 | S35: 0 | T35: 0 | U35: 0 | V35: 0 | AE35: 0.4 | AG35: =IF(SUM($B28:$N28)=0,"-",AVERAGE($B28:$N28)/$E$13) -> -
Q36: 0 | R36: 0 | S36: 0 | T36: 0 | U36: 0 | V36: 0 | AE36: 0.2 | AG36: =IF(SUM($B29:$N29)=0,"-",AVERAGE($B29:$N29)/$E$13) -> -
Q37: 0 | R37: 0 | S37: 0 | T37: 0 | U37: 0 | V37: 0 | AE37: Radier | AG37: =IF(SUM($B30:$N30)=0,"-",AVERAGE($B30:$N30)/$E$13) -> -
B38: Vitesses moyennes calculées pour chaque verticale selon le nombre de points de mesure (en m/s) : | P38: Vitesse maximum : | AC38: 1 2 3 5 6 | AE38: Hauteurs d'eau conseillées pour la mesure des vitesses | AG38: Hauteurs d'eau retenues pour la mesure des vitesses
B39: =IF(B17="Rive Gauche",(2*$E$11-1)*C39,IF(B17="Rive Droite",(2*$E$11-1)*A39,IF(COUNTA(B32:B37)=1,B35,IF(AND(COUNTA(B32:B37)=2,AND(B33<>"",B36<>"")),AVERAGE(B33,B36),IF(AND(COUNTA(B32:B37)=3,AND(B33<>"",B35<>"",B36<>"")),0.25*(B33+B35*2+B36),IF(AND(COUNTA(B32:B37)=5,AND(B32<>"",B33<>"",B35<>"",B36<>"",B37<>"")),0.1*(B32+3*B33+3*B35+2*B36+B37),IF(AND(COUNTA(B32:B37)=6,AND(B32<>"",B33<>"",B34<>"",B35<>"",B36<>"",B37<>"")),0.1*(B32+2*B33+2*B34+2*B35+2*B36+B37),""))))))) ->  | C39: =IF(C17="Rive Gauche",(2*$E$11-1)*D39,IF(C17="Rive Droite",(2*$E$11-1)*B39,IF(COUNTA(C32:C37)=1,C35,IF(AND(COUNTA(C32:C37)=2,AND(C33<>"",C36<>"")),AVERAGE(C33,C36),IF(AND(COUNTA(C32:C37)=3,AND(C33<>"",C35<>"",C36<>"")),0.25*(C33+C35*2+C36),IF(AND(COUNTA(C32:C37)=5,AND(C32<>"",C33<>"",C35<>"",C36<>"",C37<>"")),0.1*(C32+3*C33+3*C35+2*C36+C37),IF(AND(COUNTA(C32:C37)=6,AND(C32<>"",C33<>"",C34<>"",C35<>"",C36<>"",C37<>"")),0.1*(C32+2*C33+2*C34+2*C35+2*C36+C37),""))))))) ->  | D39: =IF(D17="Rive Gauche",(2*$E$11-1)*E39,IF(D17="Rive Droite",(2*$E$11-1)*C39,IF(COUNTA(D32:D37)=1,D35,IF(AND(COUNTA(D32:D37)=2,AND(D33<>"",D36<>"")),AVERAGE(D33,D36),IF(AND(COUNTA(D32:D37)=3,AND(D33<>"",D35<>"",D36<>"")),0.25*(D33+D35*2+D36),IF(AND(COUNTA(D32:D37)=5,AND(D32<>"",D33<>"",D35<>"",D36<>"",D37<>"")),0.1*(D32+3*D33+3*D35+2*D36+D37),IF(AND(COUNTA(D32:D37)=6,AND(D32<>"",D33<>"",D34<>"",D35<>"",D36<>"",D37<>"")),0.1*(D32+2*D33+2*D34+2*D35+2*D36+D37),""))))))) ->  | H39: =IF(H17="Rive Gauche",(2*$E$11-1)*I39,IF(H17="Rive Droite",(2*$E$11-1)*G39,IF(COUNTA(H32:H37)=1,H35,IF(AND(COUNTA(H32:H37)=2,AND(H33<>"",H36<>"")),AVERAGE(H33,H36),IF(AND(COUNTA(H32:H37)=3,AND(H33<>"",H35<>"",H36<>"")),0.25*(H33+H35*2+H36),IF(AND(COUNTA(H32:H37)=5,AND(H32<>"",H33<>"",H35<>"",H36<>"",H37<>"")),0.1*(H32+3*H33+3*H35+2*H36+H37),IF(AND(COUNTA(H32:H37)=6,AND(H32<>"",H33<>"",H34<>"",H35<>"",H36<>"",H37<>"")),0.1*(H32+2*H33+2*H34+2*H35+2*H36+H37),""))))))) ->  | P39: =MAX(C32:M37) -> 0 | AC39: Nombre de points de mesure
B40: Débits unitaires par verticale - Méthode de la section moyenne (en m3/s) :
C41: =IF(C21<>"",C21*AVERAGE(B23:C23)*AVERAGE(B39:C39),"") ->  | D41: =IF(D21<>"",D21*AVERAGE(C23:D23)*AVERAGE(C39:D39),"") ->  | N41: =IF(N21<>"",N21*AVERAGE(M23:N23)*AVERAGE(M39:N39),"") -> 
B42: =IF(B41="","",B41/$H$44) ->  | C42: =IF(C41="","",C41/$H$44) -> 
B43: =COUNTIF(A42:M42,">0,1")/COUNTA(A42:M42) -> 0 | C43: des débits unitaires dépassent 10% du débit total | H43: =COUNTIF(Q33:AB37,">0,2xP39")/COUNTA(Q33:AB37) -> 0 | I43: de mesures adjacentes dépassent 20% de la vitesse max
B44: Débits sur la totalité de la section de mesure : | H44: =SUM(B41:N41) -> 0 | J44: =H44*60*60 -> 0 | L44: =J44*24 -> 0
B45: Surface mouillée totale : | F45: =IF(C21="",0,C21*AVERAGE(B23:C23))+IF(D21="",0,D21*AVERAGE(C23:D23))+IF(E21="",0,E21*AVERAGE(D23:E23))+IF(F21="",0,F21*AVERAGE(E23:F23))+IF(G21="",0,G21*AVERAGE(F23:G23))+IF(H21="",0,H21*AVERAGE(G23:H23))+IF(I21="",0,I21*AVERAGE(H23:I23))+IF(J21="",0,J21*AVERAGE(I23:J23))+IF(K21="",0,K21*AVERAGE(J23:K23))+IF(L21="",0,L21*AVERAGE(K23:L23))+IF(M21="",0,M21*AVERAGE(L23:M23))+IF(N21="",0,N21*AVERAGE(M23:N23)) -> 0 | H45: Vitesse moyenne jaugée : | L45: =H44/F45 -> 
P47: Formules de calcul des vitesses moyennes selon le nombre de points de mesure par verticale :
Q48: Méthode à 1 point : Vitesse moyenne = V0,4
Q49: Méthode à 2 points : Vitesse moyenne = 0,5 x (V0,2 + V0,8)
Q50: Méthode à 3 points : Vitesse moyenne = 0,25 x (V0,2 + 2V0,6 + V0,8)
Q51: Méthode à 5 points : Vitesse moyenne = 0,1 x (Vsurface + 3V0,2 + 3V0,6 + 2V0,8 + Vfond)
Q52: Méthode à 6 points : Vitesse moyenne = 0,1 x (Vsurface + 2V0,2 + 2V0,4 + 2V0,6 + 2V0,8 + Vfond)
P54: Coefficients de rive :
Q55: kr = 1 : Berges lisses de forme rectangulaire è Débit maximal
Q56: kr = 0,8 : Valeur par défaut à utiliser pour les canaux rectangulaires
Q57: kr = 0,5 : Berges de forme triangulaire è Débit nul
P59: Nombre de verticales :
Q60: Le débit unitaire de chaque verticale doit être inférieur à 5% du débit total, et en aucun cas il ne doit dépasser 10% du débit total
Q61: La distance entre 2 verticales doit être supérieure à la largeur du capteur
Q62: Les première et dernière verticales doivent être aussi proche que possible de la bordure de l'eau
P64: Nombre de points par verticale :
Q65: La différence des mesures de vitesse entre 2 points adjacents ne doit pas dépasser 20% de la vitesse la plus élevée
Q66: Les incertitudes de mesure en fonction du nombre de point sont les suivantes : 5 points 2,5%, 2 points 3,5%, 1 point 7,5%
P68: Méthode de mesure par point:
Q69: Le chenal de mesure doit être rectiligne, de section et de pente uniforme, présenter des longueurs droites en amont ≥ 6 fois la largeur du chanal et en aval ≥ 3 fois la largeur du chenal
Q70: Les directions d'écoulement doivent être parrallèles les unes aux autres et perpendiculaires à la section de mesurage
Q71: Le dispositif utilisé pour réaliser le mesurage de la vitesse doit être positionné dans l'axe du flux
Q72: Le dispositif utilisé pour réaliser le mesurage de la vitesse doit être maintenu en position pendant au moins 30 secondes
Q73: Le niveau d'eau doit être lu au début et à la fin de la période de mesurage
Q74: Deux cycles complets de mesurage doivent être réalisés, si les résultats diffèrent de plus de 10% l'opération doit être répétée
Q75: Les courantomètres électromagnétiques ne doivent pas être utilisés lorsque la hauteur d'eau est inférieure à 3 fois l'épaisseur du capteur
Q76: Les courantomètres rotatifs ne doivent pas être utilisés lorsque la hauteur d'eau est inférieure à 4 fois le diamètre de l'hélice utilisée

Sheet 5 Points
B1: JAUGEAGE PAR EXPLORATION DU CHAMP DES VITESSES
B2: METHODE POINTS ET FORMULES NORMALISEES
D4: Date : | H4: Maître d'ouvrage :
D5: Heure de début : | H5: Nom de la prise :
D6: Heure de fin : | H6: Localisation :
D7: Durée de mesurage : | E7: =E6-E5 -> 00:00:00 | H7: GPS : | I7: X : | L7: Y :
D9: Equipement en place : | H9: Equipement utilisé : | P9: Nombre de verticales recommandées par la norme NF EN ISO 748 selon la largeur du chenal
D10: Forme du chenal : | H10: Type : | P10: Version de Janvier 2002 | V10: Version de Avril 2009 | AA10: Version de Décembre 2021
D11: Coefficient de rive : | E11: 0.8 | H11: Référence de l'appareil : | P11: < 0,5 | Q11: >0,5 et <1 | R11: >1 et <3 | S11: >3 et <5 | T11: >5 et <10 | U11: > 10 | V11: < 0,5 | W11: >0,5 et <1 | X11: >1 et <3 | Y11: >3 et <5 | Z11: > 5 | AA11: < 0,5 | AB11: >0,5 et <5 | AC11: > 5
D12: Largeur du chenal : | E12: 0.6 | H12: Référence de l'hélice : | P12: 3 ou 4 | Q12: 4 ou 5 | R12: 5 à 8 | S12: 8 à 10 | T12: 10 à 20 | U12: >20 | V12: 5 ou 6 | W12: 6 ou 7 | X12: 7 à 12 | Y12: 13 à 16 | Z12: > 22 | AA12: ≥ 15 | AB12: ≥ 20 | AC12: ≥ 22
D13: Profondeur moyenne : | E13: 0.45 | H13: Opérateur(s) : | P13: =IF($E$12<0.5,"3 ou 4",IF($E$12<1,"4 ou 5",IF($E$12<3,"5 à 8",IF($E$12<5,"8 à 10",IF($E$12<10,"10 à 20","> 20"))))) -> 4 ou 5 | V13: =IF($E$12<0.5,"5 ou 6",IF($E$12<1,"6 ou 7",IF($E$12<3,"7 à 12",IF($E$12<5,"13 à 16","> 22")))) -> 6 ou 7 | AA13: =IF($E$12<0.5,"≥ 15",IF($E$12<5,"≥ 20","≥ 22")) -> ≥ 20
E15: Nombre de verticales retenues : | F15: 5 | M15: Nombre de points retenus par verticale : | N15: 5 | R15: Distance entre verticales : | S15: =IF(F15=1,E12/2,($E$12-0.1)/($F$15-1)) -> 0.125 | U15: Nombre de points conseillés par verticale : | Z15: =IF(MAX(B23:N23)>0.2,3,2) -> 2
B17: Rive Gauche | C17: =IF($F$15>=1,"Vert. 01",IF($F$15=0,"Rive Droite","")) -> Vert. 01 | D17: =IF($F$15>=2,"Vert. 02",IF($F$15=1,"Rive Droite","")) -> Vert. 02 | E17: =IF($F$15>=3,"Vert. 03",IF($F$15=2,"Rive Droite","")) -> Vert. 03 | F17: =IF($F$15>=4,"Vert. 04",IF($F$15=3,"Rive Droite","")) -> Vert. 04 | G17: =IF($F$15>=5,"Vert. 05",IF($F$15=4,"Rive Droite","")) -> Vert. 05 | H17: =IF($F$15>=6,"Vert. 06",IF($F$15=5,"Rive Droite","")) -> Rive Droite | I17: =IF($F$15>=7,"Vert. 07",IF($F$15=6,"Rive Droite","")) ->  | J17: =IF($F$15>=8,"Vert. 08",IF($F$15=7,"Rive Droite","")) ->  | K17: =IF($F$15>=9,"Vert. 09",IF($F$15=8,"Rive Droite","")) ->  | L17: =IF($F$15>=10,"Vert. 10",IF($F$15=9,"Rive Droite","")) ->  | M17: =IF($F$15>=11,"Vert. 11",IF($F$15=10,"Rive Droite","")) ->  | N17: =IF($F$15>=12,"Vert. 12",IF($F$15=11,"Rive Droite","")) ->  | P17: Rive Gauche | Q17: =IF($F$15>=1,"Vert. 01",IF($F$15=0,"Rive Droite","")) -> Vert. 01 | R17: =IF($F$15>=2,"Vert. 02",IF($F$15=1,"Rive Droite","")) -> Vert. 02 | S17: =IF($F$15>=3,"Vert. 03",IF($F$15=2,"Rive Droite","")) -> Vert. 03 | T17: =IF($F$15>=4,"Vert. 04",IF($F$15=3,"Rive Droite","")) -> Vert. 04 | U17: =IF($F$15>=5,"Vert. 05",IF($F$15=4,"Rive Droite","")) -> Vert. 05 | V17: =IF($F$15>=6,"Vert. 06",IF($F$15=5,"Rive Droite","")) -> Rive Droite | W17: =IF($F$15>=7,"Vert. 07",IF($F$15=6,"Rive Droite","")) ->  | X17: =IF($F$15>=8,"Vert. 08",IF($F$15=7,"Rive Droite","")) ->  | Y17: =IF($F$15>=9,"Vert. 09",IF($F$15=8,"Rive Droite","")) ->  | Z17: =IF($F$15>=10,"Vert. 10",IF($F$15=9,"Rive Droite","")) ->  | AA17: =IF($F$15>=11,"Vert. 11",IF($F$15=10,"Rive Droite","")) ->  | AB17: =IF($F$15>=12,"Vert. 12",IF($F$15=1,"Rive Droite","")) -> 
B18: Distances à la rive retenues pour chaque verticale (en mètre par rapport à la rive gauche) : | P18: Distances à la rive conseillées pour chaque verticale (en mètre par rapport à la rive gauche) :
B19: =0 -> 0 | P19: =0 -> 0 | Q19: =0.05 -> 0.05 | R19: =IF(Q19="","",IF(R17="Rive Droite",$E$12,IF(Q19+$U$13<$E$12,Q19+$U$13,""))) -> 0.05 | S19: 0.05 | T19: 0.05 | U19: 0.05 | V19: 0.6
B20: Distances retenues entre verticales (en mètre) : | P20: Distances conseillées entre verticales (en mètre) :
B21: 0 | C21: =IF(AND(B$19<>"",C$19<>""),C$19-B$19,"") ->  | D21: =IF(AND(C$19<>"",D$19<>""),D$19-C$19,"") ->  | P21: 0 | Q21: =IF(AND(P$19<>"",Q$19<>""),Q$19-P$19,"") -> 0.05 | R21: =IF(AND(Q$19<>"",R$19<>""),R$19-Q$19,"") -> 0 | S21: =IF(AND(R$19<>"",S$19<>""),S$19-R$19,"") -> 0 | T21: 0 | U21: 0 | V21: 0.55
B22: Hauteurs d'eau mesurées à chaque verticale (en mètre) : | P22: Rive Gauche | Q22: =IF($F$15>=1,"Vert. 01",IF($F$15=0,"Rive Droite","")) -> Vert. 01 | R22: =IF($F$15>=2,"Vert. 02",IF($F$15=1,"Rive Droite","")) -> Vert. 02 | S22: =IF($F$15>=3,"Vert. 03",IF($F$15=2,"Rive Droite","")) -> Vert. 03 | T22: =IF($F$15>=4,"Vert. 04",IF($F$15=3,"Rive Droite","")) -> Vert. 04 | U22: =IF($F$15>=5,"Vert. 05",IF($F$15=4,"Rive Droite","")) -> Vert. 05 | V22: =IF($F$15>=6,"Vert. 06",IF($F$15=5,"Rive Droite","")) -> Rive Droite | W22: =IF($F$15>=7,"Vert. 07",IF($F$15=6,"Rive Droite","")) ->  | X22: =IF($F$15>=8,"Vert. 08",IF($F$15=7,"Rive Droite","")) ->  | Y22: =IF($F$15>=9,"Vert. 09",IF($F$15=8,"Rive Droite","")) ->  | Z22: =IF($F$15>=10,"Vert. 10",IF($F$15=9,"Rive Droite","")) ->  | AA22: =IF($F$15>=11,"Vert. 11",IF($F$15=10,"Rive Droite","")) ->  | AB22: =IF($F$15>=12,"Vert. 12",IF($F$15=1,"Rive Droite","")) -> 
B24: Hauteurs retenues pour chaque point de mesure de la vitesse d'écoulement (en mètre par rapport au fond) : | P24: Hauteurs conseillées pour chaque point de mesure de la vitesse d'écoulement (en mètre par rapport au fond) :
Q25: =IF(OR(Q$17="",Q$17="Rive Droite"),"",IF($N$15<5,"",C$23)) -> 0 | R25: =IF(OR(R$17="",R$17="Rive Droite"),"",IF($N$15<5,"",D$23)) -> 0 | S25: 0 | T25: 0 | U25: 0
Q26: =IF(OR(Q$17="",Q$17="Rive Droite"),"",IF($N$15>1,C$23*0.8,"")) -> 0 | R26: =IF(OR(R$17="",R$17="Rive Droite"),"",IF($N$15>1,D$23*0.8,"")) -> 0 | S26: 0 | T26: 0 | U26: 0
Q27: =IF(OR(Q$17="",Q$17="Rive Droite"),"",IF($N$15=6,C$23*0.6,"")) -> 
Q28: =IF(OR(Q$17="",Q$17="Rive Droite"),"",IF(OR($N$15>2,$N$15=1),C$23*0.4,"")) -> 0 | R28: =IF(OR(R$17="",R$17="Rive Droite"),"",IF(OR($N$15>2,$N$15=1),D$23*0.4,"")) -> 0 | S28: 0 | T28: 0 | U28: 0
Q29: =IF(OR(Q$17="",Q$17="Rive Droite"),"",IF($N$15>1,C$23*0.2,"")) -> 0 | R29: =IF(OR(R$17="",R$17="Rive Droite"),"",IF($N$15>1,D$23*0.2,"")) -> 0 | S29: 0 | T29: 0 | U29: =IF(OR(U$17="",U$17="Rive Droite"),"",IF($N$15>1,G$23*0.2,"")) -> 0
Q30: =IF(OR(Q$17="",Q$17="Rive Droite"),"",IF($N$15>=5,0,"")) -> 0 | R30: 0 | S30: 0 | T30: 0 | U30: 0
B31: Vitesses d'écoulement mesurées à chaque point de mesure (en m/s) : | P31: Ecarts de mesure entre 2 points adjacents : | AC31: Positionnement des points de mesure
W32: =IF(OR(W$17="",W$17="Rive Droite"),"",IF($N$15<5,"",I$23)) ->  | AE32: Fil d'eau | AG32: =IF(SUM($B25:$N25)=0,"-",1-AVERAGE($B25:$N25)/$E$13) -> -
Q33: =IF(OR(Q$17="",Q$17="Rive Droite"),"",C33-C32) -> 0 | R33: =IF(OR(R$17="",R$17="Rive Droite"),"",D33-D32) -> 0 | S33: 0 | T33: 0 | U33: 0 | AE33: 0.8 | AG33: =IF(SUM($B26:$N26)=0,"-",AVERAGE($B26:$N26)/$E$13) -> -
Q34: =IF(OR(Q$17="",Q$17="Rive Droite"),"",C34-C33) -> 0 | R34: 0 | S34: 0 | T34: 0 | U34: 0 | AE34: 0.6 | AG34: =IF(SUM($B27:$N27)=0,"-",AVERAGE($B27:$N27)/$E$13) -> -
Q35: 0 | R35: 0 | S35: 0 | T35: 0 | U35: 0 | AE35: 0.4 | AG35: =IF(SUM($B28:$N28)=0,"-",AVERAGE($B28:$N28)/$E$13) -> -
Q36: 0 | R36: 0 | S36: 0 | T36: 0 | U36: 0 | AE36: 0.2 | AG36: =IF(SUM($B29:$N29)=0,"-",AVERAGE($B29:$N29)/$E$13) -> -
Q37: 0 | R37: 0 | S37: 0 | T37: 0 | U37: 0 | AE37: Radier | AG37: =IF(SUM($B30:$N30)=0,"-",AVERAGE($B30:$N30)/$E$13) -> -
B38: Vitesses moyennes calculées pour chaque verticale selon le nombre de points de mesure (en m/s) : | P38: Vitesse maximum : | AC38: 1 2 3 5 6 | AE38: Hauteurs d'eau conseillées pour la mesure des vitesses | AG38: Hauteurs d'eau retenues pour la mesure des vitesses
B39: =IF(B17="Rive Gauche",(2*$E$11-1)*C39,IF(B17="Rive Droite",(2*$E$11-1)*A39,IF(COUNTA(B32:B37)=1,B35,IF(AND(COUNTA(B32:B37)=2,AND(B33<>"",B36<>"")),AVERAGE(B33,B36),IF(AND(COUNTA(B32:B37)=3,AND(B33<>"",B35<>"",B36<>"")),0.25*(B33+B35*2+B36),IF(AND(COUNTA(B32:B37)=5,AND(B32<>"",B33<>"",B35<>"",B36<>"",B37<>"")),0.1*(B32+3*B33+3*B35+2*B36+B37),IF(AND(COUNTA(B32:B37)=6,AND(B32<>"",B33<>"",B34<>"",B35<>"",B36<>"",B37<>"")),0.1*(B32+2*B33+2*B34+2*B35+2*B36+B37),""))))))) ->  | C39: =IF(C17="Rive Gauche",(2*$E$11-1)*D39,IF(C17="Rive Droite",(2*$E$11-1)*B39,IF(COUNTA(C32:C37)=1,C35,IF(AND(COUNTA(C32:C37)=2,AND(C33<>"",C36<>"")),AVERAGE(C33,C36),IF(AND(COUNTA(C32:C37)=3,AND(C33<>"",C35<>"",C36<>"")),0.25*(C33+C35*2+C36),IF(AND(COUNTA(C32:C37)=5,AND(C32<>"",C33<>"",C35<>"",C36<>"",C37<>"")),0.1*(C32+3*C33+3*C35+2*C36+C37),IF(AND(COUNTA(C32:C37)=6,AND(C32<>"",C33<>"",C34<>"",C35<>"",C36<>"",C37<>"")),0.1*(C32+2*C33+2*C34+2*C35+2*C36+C37),""))))))) ->  | D39: =IF(D17="Rive Gauche",(2*$E$11-1)*E39,IF(D17="Rive Droite",(2*$E$11-1)*C39,IF(COUNTA(D32:D37)=1,D35,IF(AND(COUNTA(D32:D37)=2,AND(D33<>"",D36<>"")),AVERAGE(D33,D36),IF(AND(COUNTA(D32:D37)=3,AND(D33<>"",D35<>"",D36<>"")),0.25*(D33+D35*2+D36),IF(AND(COUNTA(D32:D37)=5,AND(D32<>"",D33<>"",D35<>"",D36<>"",D37<>"")),0.1*(D32+3*D33+3*D35+2*D36+D37),IF(AND(COUNTA(D32:D37)=6,AND(D32<>"",D33<>"",D34<>"",D35<>"",D36<>"",D37<>"")),0.1*(D32+2*D33+2*D34+2*D35+2*D36+D37),""))))))) ->  | H39: =IF(H17="Rive Gauche",(2*$E$11-1)*I39,IF(H17="Rive Droite",(2*$E$11-1)*G39,IF(COUNTA(H32:H37)=1,H35,IF(AND(COUNTA(H32:H37)=2,AND(H33<>"",H36<>"")),AVERAGE(H33,H36),IF(AND(COUNTA(H32:H37)=3,AND(H33<>"",H35<>"",H36<>"")),0.25*(H33+H35*2+H36),IF(AND(COUNTA(H32:H37)=5,AND(H32<>"",H33<>"",H35<>"",H36<>"",H37<>"")),0.1*(H32+3*H33+3*H35+2*H36+H37),IF(AND(COUNTA(H32:H37)=6,AND(H32<>"",H33<>"",H34<>"",H35<>"",H36<>"",H37<>"")),0.1*(H32+2*H33+2*H34+2*H35+2*H36+H37),""))))))) ->  | P39: =MAX(C32:M37) -> 0 | AC39: Nombre de points de mesure
B40: Débits unitaires par verticale - Méthode de la section moyenne (en m3/s) :
C41: =IF(C21<>"",C21*AVERAGE(B23:C23)*AVERAGE(B39:C39),"") ->  | D41: =IF(D21<>"",D21*AVERAGE(C23:D23)*AVERAGE(C39:D39),"") ->  | N41: =IF(N21<>"",N21*AVERAGE(M23:N23)*AVERAGE(M39:N39),"") -> 
B42: =IF(B41="","",B41/$H$44) ->  | C42: =IF(C41="","",C41/$H$44) -> 
B43: =COUNTIF(A42:M42,">0,1")/COUNTA(A42:M42) -> 0 | C43: des débits unitaires dépassent 10% du débit total | H43: =COUNTIF(Q33:AB37,">0,2xP39")/COUNTA(Q33:AB37) -> 0 | I43: de mesures adjacentes dépassent 20% de la vitesse max
B44: Débits sur la totalité de la section de mesure : | H44: =SUM(C41:N41) -> 0 | J44: =H44*60*60 -> 0 | L44: =J44*24 -> 0
B45: Surface mouillée totale : | F45: =IF(C21="",0,C21*AVERAGE(B23:C23))+IF(D21="",0,D21*AVERAGE(C23:D23))+IF(E21="",0,E21*AVERAGE(D23:E23))+IF(F21="",0,F21*AVERAGE(E23:F23))+IF(G21="",0,G21*AVERAGE(F23:G23))+IF(H21="",0,H21*AVERAGE(G23:H23))+IF(I21="",0,I21*AVERAGE(H23:I23))+IF(J21="",0,J21*AVERAGE(I23:J23))+IF(K21="",0,K21*AVERAGE(J23:K23))+IF(L21="",0,L21*AVERAGE(K23:L23))+IF(M21="",0,M21*AVERAGE(L23:M23))+IF(N21="",0,N21*AVERAGE(M23:N23)) -> 0 | H45: Vitesse moyenne jaugée : | L45: =H44/F45 -> 
P47: Formules de calcul des vitesses moyennes selon le nombre de points de mesure par verticale :
Q48: Méthode à 1 point : Vitesse moyenne = V0,4
Q49: Méthode à 2 points : Vitesse moyenne = 0,5 x (V0,2 + V0,8)
Q50: Méthode à 3 points : Vitesse moyenne = 0,25 x (V0,2 + 2V0,6 + V0,8)
Q51: Méthode à 5 points : Vitesse moyenne = 0,1 x (Vsurface + 3V0,2 + 3V0,6 + 2V0,8 + Vfond)
Q52: Méthode à 6 points : Vitesse moyenne = 0,1 x (Vsurface + 2V0,2 + 2V0,4 + 2V0,6 + 2V0,8 + Vfond)
P54: Coefficients de rive :
Q55: kr = 1 : Berges lisses de forme rectangulaire è Débit maximal
Q56: kr = 0,8 : Valeur par défaut à utiliser pour les canaux rectangulaires
Q57: kr = 0,5 : Berges de forme triangulaire è Débit nul
P59: Nombre de verticales :
Q60: Le débit unitaire de chaque verticale doit être inférieur à 5% du débit total, et en aucun cas il ne doit dépasser 10% du débit total
Q61: La distance entre 2 verticales doit être supérieure à la largeur du capteur
Q62: Les première et dernière verticales doivent être aussi proche que possible de la bordure de l'eau
P64: Nombre de points par verticale :
Q65: La différence des mesures de vitesse entre 2 points adjacents ne doit pas dépasser 20% de la vitesse la plus élevée
Q66: Les incertitudes de mesure en fonction du nombre de point sont les suivantes : 5 points 2,5%, 2 points 3,5%, 1 point 7,5%
P68: Méthode de mesure par point:
Q69: Le chenal de mesure doit être rectiligne, de section et de pente uniforme, présenter des longueurs droites en amont ≥ 6 fois la largeur du chanal et en aval ≥ 3 fois la largeur du chenal
Q70: Les directions d'écoulement doivent être parrallèles les unes aux autres et perpendiculaires à la section de mesurage
Q71: Le dispositif utilisé pour réaliser le mesurage de la vitesse doit être positionné dans l'axe du flux
Q72: Le dispositif utilisé pour réaliser le mesurage de la vitesse doit être maintenu en position pendant au moins 30 secondes
Q73: Le niveau d'eau doit être lu au début et à la fin de la période de mesurage
Q74: Deux cycles complets de mesurage doivent être réalisés, si les résultats diffèrent de plus de 10% l'opération doit être répétée
Q75: Les courantomètres électromagnétiques ne doivent pas être utilisés lorsque la hauteur d'eau est inférieure à 3 fois l'épaisseur du capteur
Q76: Les courantomètres rotatifs ne doivent pas être utilisés lorsque la hauteur d'eau est inférieure à 4 fois le diamètre de l'hélice utilisée

Sheet 6 Points
B1: JAUGEAGE PAR EXPLORATION DU CHAMP DES VITESSES
B2: METHODE POINTS ET FORMULES NORMALISEES
D4: Date : | E4: 2024-07-25 | H4: Maître d'ouvrage : | I4: ASA d'irrigation de la plaine de Silon
D5: Heure de début : | E5: 10:00:00 | H5: Nom de la prise : | I5: Prise d'eau dans la Cance
D6: Heure de fin : | E6: 11:00:00 | H6: Localisation : | I6: Sarras (07)
D7: Durée de mesurage : | E7: =E6-E5 -> 01:00:00 | H7: GPS : | I7: X : | J7: 45.2048 | L7: Y : | M7: 4.79452
D9: Equipement en place : | E9: Aucun | H9: Equipement utilisé : | K9: Vélocimètre | P9: Nombre de verticales recommandées par la norme NF EN ISO 748 selon la largeur du chenal
D10: Forme du chenal : | H10: Type : | P10: Version de Janvier 2002 | V10: Version de Avril 2009 | AA10: Version de Décembre 2021
D11: Coefficient de rive : | E11: 0.8 | H11: Référence de l'appareil : | P11: < 0,5 | Q11: >0,5 et <1 | R11: >1 et <3 | S11: >3 et <5 | T11: >5 et <10 | U11: > 10 | V11: < 0,5 | W11: >0,5 et <1 | X11: >1 et <3 | Y11: >3 et <5 | Z11: > 5 | AA11: < 0,5 | AB11: >0,5 et <5 | AC11: > 5
D12: Largeur du chenal : | E12: 2.05 | H12: Référence de l'hélice : | K12: APAVE | P12: 3 ou 4 | Q12: 4 ou 5 | R12: 5 à 8 | S12: 8 à 10 | T12: 10 à 20 | U12: >20 | V12: 5 ou 6 | W12: 6 ou 7 | X12: 7 à 12 | Y12: 13 à 16 | Z12: > 22 | AA12: ≥ 15 | AB12: ≥ 20 | AC12: ≥ 22
D13: Profondeur moyenne : | E13: 0.2 | H13: Opérateur(s) : | K13: BRICNET Yann | P13: =IF($E$12<0.5,"3 ou 4",IF($E$12<1,"4 ou 5",IF($E$12<3,"5 à 8",IF($E$12<5,"8 à 10",IF($E$12<10,"10 à 20","> 20"))))) -> 5 à 8 | V13: =IF($E$12<0.5,"5 ou 6",IF($E$12<1,"6 ou 7",IF($E$12<3,"7 à 12",IF($E$12<5,"13 à 16","> 22")))) -> 7 à 12 | AA13: =IF($E$12<0.5,"≥ 15",IF($E$12<5,"≥ 20","≥ 22")) -> ≥ 20
E15: Nombre de verticales retenues : | F15: 6 | M15: Nombre de points retenus par verticale : | N15: 6 | R15: Distance entre verticales : | S15: =IF(F15=1,E12/2,($E$12-0.1)/($F$15-1)) -> 0.39 | U15: Nombre de points conseillés par verticale : | Z15: =IF(MAX(B23:N23)>0.2,3,2) -> 3
B17: Rive Gauche | C17: =IF($F$15>=1,"Vert. 01",IF($F$15=0,"Rive Droite","")) -> Vert. 01 | D17: =IF($F$15>=2,"Vert. 02",IF($F$15=1,"Rive Droite","")) -> Vert. 02 | E17: =IF($F$15>=3,"Vert. 03",IF($F$15=2,"Rive Droite","")) -> Vert. 03 | F17: =IF($F$15>=4,"Vert. 04",IF($F$15=3,"Rive Droite","")) -> Vert. 04 | G17: =IF($F$15>=5,"Vert. 05",IF($F$15=4,"Rive Droite","")) -> Vert. 05 | H17: =IF($F$15>=6,"Vert. 06",IF($F$15=5,"Rive Droite","")) -> Vert. 06 | I17: =IF($F$15>=7,"Vert. 07",IF($F$15=6,"Rive Droite","")) -> Rive Droite | J17: =IF($F$15>=8,"Vert. 08",IF($F$15=7,"Rive Droite","")) ->  | K17: =IF($F$15>=9,"Vert. 09",IF($F$15=8,"Rive Droite","")) ->  | L17: =IF($F$15>=10,"Vert. 10",IF($F$15=9,"Rive Droite","")) ->  | M17: =IF($F$15>=11,"Vert. 11",IF($F$15=10,"Rive Droite","")) ->  | N17: =IF($F$15>=12,"Vert. 12",IF($F$15=11,"Rive Droite","")) ->  | P17: Rive Gauche | Q17: =IF($F$15>=1,"Vert. 01",IF($F$15=0,"Rive Droite","")) -> Vert. 01 | R17: =IF($F$15>=2,"Vert. 02",IF($F$15=1,"Rive Droite","")) -> Vert. 02 | S17: =IF($F$15>=3,"Vert. 03",IF($F$15=2,"Rive Droite","")) -> Vert. 03 | T17: =IF($F$15>=4,"Vert. 04",IF($F$15=3,"Rive Droite","")) -> Vert. 04 | U17: =IF($F$15>=5,"Vert. 05",IF($F$15=4,"Rive Droite","")) -> Vert. 05 | V17: =IF($F$15>=6,"Vert. 06",IF($F$15=5,"Rive Droite","")) -> Vert. 06 | W17: =IF($F$15>=7,"Vert. 07",IF($F$15=6,"Rive Droite","")) -> Rive Droite | X17: =IF($F$15>=8,"Vert. 08",IF($F$15=7,"Rive Droite","")) ->  | Y17: =IF($F$15>=9,"Vert. 09",IF($F$15=8,"Rive Droite","")) ->  | Z17: =IF($F$15>=10,"Vert. 10",IF($F$15=9,"Rive Droite","")) ->  | AA17: =IF($F$15>=11,"Vert. 11",IF($F$15=10,"Rive Droite","")) ->  | AB17: =IF($F$15>=12,"Vert. 12",IF($F$15=1,"Rive Droite","")) -> 
B18: Distances à la rive retenues pour chaque verticale (en mètre par rapport à la rive gauche) : | P18: Distances à la rive conseillées pour chaque verticale (en mètre par rapport à la rive gauche) :
B19: =0 -> 0 | C19: 0.05 | D19: 0.44 | E19: 0.83 | F19: 1.22 | G19: 1.61 | H19: 2 | I19: 2.05 | P19: =0 -> 0 | Q19: =0.05 -> 0.05 | R19: =IF(Q19="","",IF(R17="Rive Droite",$E$12,IF(Q19+$U$13<$E$12,Q19+$U$13,""))) -> 0.05 | S19: 0.05 | T19: 0.05 | U19: 0.05 | V19: 0.05 | W19: 2.05
B20: Distances retenues entre verticales (en mètre) : | P20: Distances conseillées entre verticales (en mètre) :
B21: 0 | C21: =IF(AND(B$19<>"",C$19<>""),C$19-B$19,"") -> 0.05 | D21: =IF(AND(C$19<>"",D$19<>""),D$19-C$19,"") -> 0.39 | E21: 0.39 | F21: 0.39 | G21: 0.39 | H21: 0.39 | I21: 0.05 | P21: 0 | Q21: =IF(AND(P$19<>"",Q$19<>""),Q$19-P$19,"") -> 0.05 | R21: =IF(AND(Q$19<>"",R$19<>""),R$19-Q$19,"") -> 0 | S21: =IF(AND(R$19<>"",S$19<>""),S$19-R$19,"") -> 0 | T21: =IF(AND(S$19<>"",T$19<>""),T$19-S$19,"") -> 0 | U21: =IF(AND(T$19<>"",U$19<>""),U$19-T$19,"") -> 0 | V21: =IF(AND(U$19<>"",V$19<>""),V$19-U$19,"") -> 0 | W21: =IF(AND(V$19<>"",W$19<>""),W$19-V$19,"") -> 2 | X21: =IF(AND(W$19<>"",X$19<>""),X$19-W$19,"") ->  | Y21: =IF(AND(X$19<>"",Y$19<>""),Y$19-X$19,"") ->  | Z21: =IF(AND(Y$19<>"",Z$19<>""),Z$19-Y$19,"") ->  | AA21: =IF(AND(Z$19<>"",AA$19<>""),AA$19-Z$19,"") ->  | AB21: =IF(AND(AA$19<>"",AB$19<>""),AB$19-AA$19,"") -> 
B22: Hauteurs d'eau mesurées à chaque verticale (en mètre) : | P22: Rive Gauche | Q22: =IF($F$15>=1,"Vert. 01",IF($F$15=0,"Rive Droite","")) -> Vert. 01 | R22: =IF($F$15>=2,"Vert. 02",IF($F$15=1,"Rive Droite","")) -> Vert. 02 | S22: =IF($F$15>=3,"Vert. 03",IF($F$15=2,"Rive Droite","")) -> Vert. 03 | T22: =IF($F$15>=4,"Vert. 04",IF($F$15=3,"Rive Droite","")) -> Vert. 04 | U22: =IF($F$15>=5,"Vert. 05",IF($F$15=4,"Rive Droite","")) -> Vert. 05 | V22: =IF($F$15>=6,"Vert. 06",IF($F$15=5,"Rive Droite","")) -> Vert. 06 | W22: =IF($F$15>=7,"Vert. 07",IF($F$15=6,"Rive Droite","")) -> Rive Droite | X22: =IF($F$15>=8,"Vert. 08",IF($F$15=7,"Rive Droite","")) ->  | Y22: =IF($F$15>=9,"Vert. 09",IF($F$15=8,"Rive Droite","")) ->  | Z22: =IF($F$15>=10,"Vert. 10",IF($F$15=9,"Rive Droite","")) ->  | AA22: =IF($F$15>=11,"Vert. 11",IF($F$15=10,"Rive Droite","")) ->  | AB22: =IF($F$15>=12,"Vert. 12",IF($F$15=1,"Rive Droite","")) -> 
B23: 0 | C23: 0.05 | D23: 0.17 | E23: 0.23 | F23: 0.2 | G23: 0.205 | H23: 0.14 | I23: 0.12
B24: Hauteurs retenues pour chaque point de mesure de la vitesse d'écoulement (en mètre par rapport au fond) : | P24: Hauteurs conseillées pour chaque point de mesure de la vitesse d'écoulement (en mètre par rapport au fond) :
C25: 0.05 | D25: 0.17 | E25: 0.23 | F25: 0.2 | G25: 0.205 | H25: 0.14 | Q25: =IF(OR(Q$17="",Q$17="Rive Droite"),"",IF($N$15<5,"",C$23)) -> 0.05 | R25: =IF(OR(R$17="",R$17="Rive Droite"),"",IF($N$15<5,"",D$23)) -> 0.17 | S25: 0.23 | T25: 0.2 | U25: 0.205 | V25: 0.14
C26: 0.04 | D26: 0.136 | E26: 0.184 | F26: 0.16 | G26: 0.164 | H26: 0.112 | Q26: =IF(OR(Q$17="",Q$17="Rive Droite"),"",IF($N$15>1,C$23*0.8,"")) -> 0.04 | R26: =IF(OR(R$17="",R$17="Rive Droite"),"",IF($N$15>1,D$23*0.8,"")) -> 0.136 | S26: 0.184 | T26: 0.16 | U26: 0.164 | V26: 0.112
C27: 0.03 | D27: 0.102 | E27: 0.138 | F27: 0.12 | G27: 0.123 | H27: 0.084 | Q27: =IF(OR(Q$17="",Q$17="Rive Droite"),"",IF($N$15=6,C$23*0.6,"")) -> 0.03 | R27: 0.102 | S27: 0.138 | T27: 0.12 | U27: 0.123 | V27: 0.084
C28: 0.02 | D28: 0.068 | E28: 0.092 | F28: 0.08 | G28: 0.082 | H28: 0.056 | Q28: =IF(OR(Q$17="",Q$17="Rive Droite"),"",IF(OR($N$15>2,$N$15=1),C$23*0.4,"")) -> 0.02 | R28: =IF(OR(R$17="",R$17="Rive Droite"),"",IF(OR($N$15>2,$N$15=1),D$23*0.4,"")) -> 0.068 | S28: 0.092 | T28: 0.08 | U28: 0.082 | V28: 0.056
C29: 0.01 | D29: 0.034 | E29: 0.046 | F29: 0.04 | G29: 0.041 | H29: 0.028 | Q29: =IF(OR(Q$17="",Q$17="Rive Droite"),"",IF($N$15>1,C$23*0.2,"")) -> 0.01 | R29: =IF(OR(R$17="",R$17="Rive Droite"),"",IF($N$15>1,D$23*0.2,"")) -> 0.034 | S29: 0.046 | T29: 0.04 | U29: =IF(OR(U$17="",U$17="Rive Droite"),"",IF($N$15>1,G$23*0.2,"")) -> 0.041 | V29: 0.028
C30: 0 | D30: 0 | E30: 0 | F30: 0 | G30: 0 | H30: 0 | Q30: =IF(OR(Q$17="",Q$17="Rive Droite"),"",IF($N$15>=5,0,"")) -> 0 | R30: 0 | S30: 0 | T30: 0 | U30: 0 | V30: 0
B31: Vitesses d'écoulement mesurées à chaque point de mesure (en m/s) : | P31: Ecarts de mesure entre 2 points adjacents : | AC31: Positionnement des points de mesure
C32: 0 | D32: 0.08 | E32: 0.1 | F32: 0.19 | G32: 0.16 | H32: 0.11 | W32: =IF(OR(W$17="",W$17="Rive Droite"),"",IF($N$15<5,"",I$23)) ->  | X32: =IF(OR(X$17="",X$17="Rive Droite"),"",IF($N$15<5,"",J$23)) ->  | Y32: =IF(OR(Y$17="",Y$17="Rive Droite"),"",IF($N$15<5,"",K$23)) ->  | Z32: =IF(OR(Z$17="",Z$17="Rive Droite"),"",IF($N$15<5,"",L$23)) ->  | AA32: =IF(OR(AA$17="",AA$17="Rive Droite"),"",IF($N$15<5,"",M$23)) ->  | AB32: =IF(OR(AB$17="",AB$17="Rive Droite"),"",IF($N$15<5,"",N$23)) ->  | AE32: Fil d'eau | AG32: =IF(SUM($B25:$N25)=0,"-",1-AVERAGE($B25:$N25)/$E$13) -> 0.1708333333
C33: 0 | D33: 0.13 | E33: 0.1 | F33: 0.16 | G33: 0.13 | H33: 0.13 | Q33: =IF(OR(Q$17="",Q$17="Rive Droite"),"",C33-C32) -> 0 | R33: =IF(OR(R$17="",R$17="Rive Droite"),"",D33-D32) -> 0.05 | S33: =IF(OR(S$17="",S$17="Rive Droite"),"",E33-E32) -> 0 | T33: =IF(OR(T$17="",T$17="Rive Droite"),"",F33-F32) -> -0.03 | U33: =IF(OR(U$17="",U$17="Rive Droite"),"",G33-G32) -> -0.03 | V33: =IF(OR(V$17="",V$17="Rive Droite"),"",H33-H32) -> 0.02 | W33: =IF(OR(W$17="",W$17="Rive Droite"),"",I33-I32) ->  | X33: =IF(OR(X$17="",X$17="Rive Droite"),"",J33-J32) ->  | Y33: =IF(OR(Y$17="",Y$17="Rive Droite"),"",K33-K32) ->  | Z33: =IF(OR(Z$17="",Z$17="Rive Droite"),"",L33-L32) ->  | AA33: =IF(OR(AA$17="",AA$17="Rive Droite"),"",M33-M32) ->  | AB33: =IF(OR(AB$17="",AB$17="Rive Droite"),"",N33-N32) ->  | AE33: 0.8 | AG33: =IF(SUM($B26:$N26)=0,"-",AVERAGE($B26:$N26)/$E$13) -> 0.6633333333
C34: 0 | D34: 0.1 | E34: 0.08 | F34: 0.135 | G34: 0.13 | H34: 0.11 | Q34: =IF(OR(Q$17="",Q$17="Rive Droite"),"",C34-C33) -> 0 | R34: -0.03 | S34: -0.02 | T34: -0.025 | U34: 0 | V34: -0.02 | AE34: 0.6 | AG34: =IF(SUM($B27:$N27)=0,"-",AVERAGE($B27:$N27)/$E$13) -> 0.4975
C35: 0 | D35: 0.08 | E35: 0.08 | F35: 0.13 | G35: 0.11 | H35: 0.08 | Q35: 0 | R35: -0.02 | S35: 0 | T35: -0.005 | U35: -0.02 | V35: -0.03 | AE35: 0.4 | AG35: =IF(SUM($B28:$N28)=0,"-",AVERAGE($B28:$N28)/$E$13) -> 0.3316666667
C36: 0 | D36: 0.05 | E36: 0.06 | F36: 0.11 | G36: 0.08 | H36: 0.05 | Q36: 0 | R36: -0.03 | S36: -0.02 | T36: -0.02 | U36: -0.03 | V36: -0.03 | AE36: 0.2 | AG36: =IF(SUM($B29:$N29)=0,"-",AVERAGE($B29:$N29)/$E$13) -> 0.1658333333
C37: 0 | D37: 0.02 | E37: 0.02 | F37: 0.08 | G37: 0.08 | H37: 0.02 | Q37: 0 | R37: -0.03 | S37: -0.04 | T37: -0.03 | U37: 0 | V37: -0.03 | AE37: Radier | AG37: =IF(SUM($B30:$N30)=0,"-",AVERAGE($B30:$N30)/$E$13) -> -
B38: Vitesses moyennes calculées pour chaque verticale selon le nombre de points de mesure (en m/s) : | P38: Vitesse maximum : | AC38: 1 2 3 5 6 | AE38: Hauteurs d'eau conseillées pour la mesure des vitesses | AG38: Hauteurs d'eau retenues pour la mesure des vitesses
B39: =IF(B17="Rive Gauche",(2*$E$11-1)*C39,IF(B17="Rive Droite",(2*$E$11-1)*A39,IF(COUNTA(B32:B37)=1,B35,IF(AND(COUNTA(B32:B37)=2,AND(B33<>"",B36<>"")),AVERAGE(B33,B36),IF(AND(COUNTA(B32:B37)=3,AND(B33<>"",B35<>"",B36<>"")),0.25*(B33+B35*2+B36),IF(AND(COUNTA(B32:B37)=5,AND(B32<>"",B33<>"",B35<>"",B36<>"",B37<>"")),0.1*(B32+3*B33+3*B35+2*B36+B37),IF(AND(COUNTA(B32:B37)=6,AND(B32<>"",B33<>"",B34<>"",B35<>"",B36<>"",B37<>"")),0.1*(B32+2*B33+2*B34+2*B35+2*B36+B37),""))))))) -> 0 | C39: =IF(C17="Rive Gauche",(2*$E$11-1)*D39,IF(C17="Rive Droite",(2*$E$11-1)*B39,IF(COUNTA(C32:C37)=1,C35,IF(AND(COUNTA(C32:C37)=2,AND(C33<>"",C36<>"")),AVERAGE(C33,C36),IF(AND(COUNTA(C32:C37)=3,AND(C33<>"",C35<>"",C36<>"")),0.25*(C33+C35*2+C36),IF(AND(COUNTA(C32:C37)=5,AND(C32<>"",C33<>"",C35<>"",C36<>"",C37<>"")),0.1*(C32+3*C33+3*C35+2*C36+C37),IF(AND(COUNTA(C32:C37)=6,AND(C32<>"",C33<>"",C34<>"",C35<>"",C36<>"",C37<>"")),0.1*(C32+2*C33+2*C34+2*C35+2*C36+C37),""))))))) -> 0 | D39: =IF(D17="Rive Gauche",(2*$E$11-1)*E39,IF(D17="Rive Droite",(2*$E$11-1)*C39,IF(COUNTA(D32:D37)=1,D35,IF(AND(COUNTA(D32:D37)=2,AND(D33<>"",D36<>"")),AVERAGE(D33,D36),IF(AND(COUNTA(D32:D37)=3,AND(D33<>"",D35<>"",D36<>"")),0.25*(D33+D35*2+D36),IF(AND(COUNTA(D32:D37)=5,AND(D32<>"",D33<>"",D35<>"",D36<>"",D37<>"")),0.1*(D32+3*D33+3*D35+2*D36+D37),IF(AND(COUNTA(D32:D37)=6,AND(D32<>"",D33<>"",D34<>"",D35<>"",D36<>"",D37<>"")),0.1*(D32+2*D33+2*D34+2*D35+2*D36+D37),""))))))) -> 0.082 | E39: 0.076 | F39: 0.134 | G39: 0.114 | H39: =IF(H17="Rive Gauche",(2*$E$11-1)*I39,IF(H17="Rive Droite",(2*$E$11-1)*G39,IF(COUNTA(H32:H37)=1,H35,IF(AND(COUNTA(H32:H37)=2,AND(H33<>"",H36<>"")),AVERAGE(H33,H36),IF(AND(COUNTA(H32:H37)=3,AND(H33<>"",H35<>"",H36<>"")),0.25*(H33+H35*2+H36),IF(AND(COUNTA(H32:H37)=5,AND(H32<>"",H33<>"",H35<>"",H36<>"",H37<>"")),0.1*(H32+3*H33+3*H35+2*H36+H37),IF(AND(COUNTA(H32:H37)=6,AND(H32<>"",H33<>"",H34<>"",H35<>"",H36<>"",H37<>"")),0.1*(H32+2*H33+2*H34+2*H35+2*H36+H37),""))))))) -> 0.087 | I39: 0.0522 | P39: =MAX(C32:M37) -> 0.19 | AC39: Nombre de points de mesure
B40: Débits unitaires par verticale - Méthode de la section moyenne (en m3/s) :
C41: =IF(C21<>"",C21*AVERAGE(B23:C23)*AVERAGE(B39:C39),"") -> 0 | D41: =IF(D21<>"",D21*AVERAGE(C23:D23)*AVERAGE(C39:D39),"") -> 0.0017589 | E41: 0.006162 | F41: 0.00880425 | G41: 0.0097929 | H41: 0.0067611375 | I41: 0.0004524 | N41: =IF(N21<>"",N21*AVERAGE(M23:N23)*AVERAGE(M39:N39),"") -> 
B42: =IF(B41="","",B41/$H$44) ->  | C42: =IF(C41="","",C41/$H$44) -> 0 | D42: 0.05214400301 | E42: 0.1826774385 | F42: 0.2610090616 | G42: 0.2903183848 | H42: 0.2004393508 | I42: 0.01341176131
B43: =COUNTIF(A42:M42,">0,1")/COUNTA(A42:M42) -> 0.3333333333 | C43: 0.3076923077 | D43: 0.3333333333 | E43: 0.3636363636 | F43: 0.4 | G43: 0.3333333333 | H43: 0.25 | I43: 0.1428571429 | J43: 0 | K43: 0 | L43: 0 | M43: 0 | N43: 0
B44: Débits sur la totalité de la section de mesure : | H44: =SUM(C41:N41) -> 0.0337315875 | J44: =H44*60*60 -> 121.433715 | L44: =J44*24 -> 2914.40916
B45: Surface mouillée totale : | F45: =IF(C21="",0,C21*AVERAGE(B23:C23))+IF(D21="",0,D21*AVERAGE(C23:D23))+IF(E21="",0,E21*AVERAGE(D23:E23))+IF(F21="",0,F21*AVERAGE(E23:F23))+IF(G21="",0,G21*AVERAGE(F23:G23))+IF(H21="",0,H21*AVERAGE(G23:H23))+IF(I21="",0,I21*AVERAGE(H23:I23))+IF(J21="",0,J21*AVERAGE(I23:J23))+IF(K21="",0,K21*AVERAGE(J23:K23))+IF(L21="",0,L21*AVERAGE(K23:L23))+IF(M21="",0,M21*AVERAGE(L23:M23))+IF(N21="",0,N21*AVERAGE(M23:N23)) -> 0.35875 | H45: Vitesse moyenne jaugée : | L45: =H44/F45 -> 0.09402533101
P47: Formules de calcul des vitesses moyennes selon le nombre de points de mesure par verticale :
Q48: Méthode à 1 point : Vitesse moyenne = V0,4
Q49: Méthode à 2 points : Vitesse moyenne = 0,5 x (V0,2 + V0,8)
Q50: Méthode à 3 points : Vitesse moyenne = 0,25 x (V0,2 + 2V0,6 + V0,8)
Q51: Méthode à 5 points : Vitesse moyenne = 0,1 x (Vsurface + 3V0,2 + 3V0,6 + 2V0,8 + Vfond)
Q52: Méthode à 6 points : Vitesse moyenne = 0,1 x (Vsurface + 2V0,2 + 2V0,4 + 2V0,6 + 2V0,8 + Vfond)
P54: Coefficients de rive :
Q55: kr = 1 : Berges lisses de forme rectangulaire è Débit maximal
Q56: kr = 0,8 : Valeur par défaut à utiliser pour les canaux rectangulaires
Q57: kr = 0,5 : Berges de forme triangulaire è Débit nul
P59: Nombre de verticales :
Q60: Le débit unitaire de chaque verticale doit être inférieur à 5% du débit total, et en aucun cas il ne doit dépasser 10% du débit total
Q61: La distance entre 2 verticales doit être supérieure à la largeur du capteur
Q62: Les première et dernière verticales doivent être aussi proche que possible de la bordure de l'eau
P64: Nombre de points par verticale :
Q65: La différence des mesures de vitesse entre 2 points adjacents ne doit pas dépasser 20% de la vitesse la plus élevée
Q66: Les incertitudes de mesure en fonction du nombre de point sont les suivantes : 5 points 2,5%, 2 points 3,5%, 1 point 7,5%
P68: Méthode de mesure par point:
Q69: Le chenal de mesure doit être rectiligne, de section et de pente uniforme, présenter des longueurs droites en amont ≥ 6 fois la largeur du chanal et en aval ≥ 3 fois la largeur du chenal
Q70: Les directions d'écoulement doivent être parrallèles les unes aux autres et perpendiculaires à la section de mesurage
Q71: Le dispositif utilisé pour réaliser le mesurage de la vitesse doit être positionné dans l'axe du flux
Q72: Le dispositif utilisé pour réaliser le mesurage de la vitesse doit être maintenu en position pendant au moins 30 secondes
Q73: Le niveau d'eau doit être lu au début et à la fin de la période de mesurage
Q74: Deux cycles complets de mesurage doivent être réalisés, si les résultats diffèrent de plus de 10% l'opération doit être répétée
Q75: Les courantomètres électromagnétiques ne doivent pas être utilisés lorsque la hauteur d'eau est inférieure à 3 fois l'épaisseur du capteur
Q76: Les courantomètres rotatifs ne doivent pas être utilisés lorsque la hauteur d'eau est inférieure à 4 fois le diamètre de l'hélice utilisée

Sheet Chek Liste Matériel
A1: Chek list du matériel à prendre pour réaliser les jaugeages dans les canaux découverts :
B2: 1 Courantomètre | E2: 1 Paire de cuissarde | H2: 1 Appareil photo
B3: 1 Mire télescopique | E3: 1 Harnais + Trépied | H3: 1 Fiche de terrain
B4: 1 Réglet d'un mètre | E4: 1 Machette | H4: 1 Pc portable
B5: 1 Décamètre | E5: 1 Paire de gants vinyle
B6: 1 Mètre rubant à lecture directe | E6: 1 Paire de gants de chantier
B7: 1 Télémètre laser | E7: 1 Echelle télescopique
B8: 1 Fil à plomb
B9: 1 Saut
